{"text_format":"1","workbook":"xlsx","n_sheets":10,"sheets":["Introduktion","1.1. Nulägesanalys","1.2. Resultat av nulägesanalys","2.1. Viktiga utmaningar","2.2. Möjliga insatser","2.3. Sammanställning","steg 2 - data","clear2","clearnulageinmatning","Variabler"],"not_rendered":{"charts":0,"images":4,"macros":1,"external_links":0,"defined_names":9,"comments":0,"pivot_tables":0},"unopened":[],"bounds":{"document_bytes":16777216,"sheet_cells":100000,"rows_first":2000,"rows_last":500,"rows_between":2000,"halvings":0,"cell_chars":16384,"cell_head_chars":4096},"cells_cut":0,"cells_raw":0,"read":"whole","date_system":"1900"}

{"sheet":"Introduktion","index":0,"n_rows":32,"n_cols":5,"rows_kept":32,"cut":false,"hidden":false,"merged":[[28,1,28,2],[29,1,29,2],[30,1,30,2],[31,1,31,2],[3,1,5,4],[19,1,20,1],[21,1,23,1],[26,1,26,2],[27,1,27,2],[8,1,10,4],[12,1,12,4],[11,1,11,4],[15,1,15,4]]}
[]
[]
[null,"Introduktion till detta verktyg"]
[null,"Denna fil, Verktyg för stärkt patientsäkerhetsarbete i regioner, är utvecklad av Sveriges Kommuner och Regioner tillsammans med  Nationell samverkansgrupp för patientsäkerhet i samverkan med Socialstyrelsen. Syftet är att stödja utvecklingen av en god och säker vård i enlighet med den nationella handlingsplanen för ökad patientsäkerhet. Verktyget innehåller ett stöd för nulägesanalys av patientsäkerhetsarbetet i regionen samt för att identifiera och prioritera bland möjliga förbättringsinsatser för en god och säker vård och omsorg.\n\nVerktyget är ett stöd i två delar: \n- Del 1. Stöd för att genomföra en nulägesanalys av patientsäkerhetsarbetet\n- Del 2. Stöd för att identifiera och prioritera bland möjliga insatser för att stärka patientsäkerhetsarbetet, utifrån resultatet av nulägesanalysen\n\nNotera följande avseende funktionaliteten i verktyget: \n- För full funktionalitet i verktyget är det viktigt att använda knapparna under respektive flik för att ta er mellan flikarna. Detta säkerställer att all information följer med till nästa sida.\n- Det kan ta några sekunder för Excelfilen att ladda när ni klickar er vidare mellan de olika stegen, detta är helt normalt och beror på att information bearbetas från de olika flikarna.\n\nVill ni rensa era svar i verktyget under en viss flik eller i hela dokumentet?\nLängst ned på denna sida finns en knapp för att nollställa hela verktyget. Notera att allt ni fyllt i kommer att raderas om ni väljer att klicka på denna. Om ni enbart vill nollställa det ni fyllt i under en viss flik för att börja om från början, går detta att göra under den enskilda fliken. \n\n\n"]
[]
[]
[]
[null,"Använd det tillhörande genomförandestödet"]
[null,"I genomförandestödet Stärkt patientsäkerhetsarbete i regioner beskrivs hur verktyget är avsett att användas och viktiga begrepp förklaras. I genomförandestödet finns även beskrivningar av de fokusområden, förutsättningar och patientsäkerhetsteman som bygger upp nulägesanalysen. Det är rekommenderat att ta stöd i genomförandestödet såväl under förberedelser som genomförandet.\n\n"]
[]
[]
[null,"Kortfattade beskrivningar av innehållet i detta verktyg samt av svarsalternativen för nulägesanalysens frågor finns även nedan. "]
[]
[]
[null,"Upplever ni tekniska problem?"]
[null,"Funktionaliteten i Excelfilen är uppbyggd med hjälp av så kallade makron. Beroende på vilka säkerhetsinställningar ni har kan ni behöva acceptera/godkänna att makron används när filen öppnas. Vissa regioner kan använda grundinställningar för Excel som inaktiverar alla makron utan att visa något meddelande. Det går då att testa att spara filen på en betrodd plats för att möjliggöra användning. Ni lägger till en betrodd plats genom att:\n- Klicka på Arkiv i menyfliksområdet i denna fil --> Klicka sedan på Alternativ.\n- Klicka på Säkerhetscenter --> Inställningar för Säkerhetscenter --> Betrodda platser.\n- Klicka på Lägg till ny plats.\n- Klicka på Bläddra. Leta upp och välj en mapp. Klicka på OK.\n\nFör att viktig funktionalitet inte ska försvinna är det viktigt att använda en senare version av Excel. Filen går inte att använda i Excel 2003–2007. "]
[]
[null,"Innehåll och kort om användning"]
[null,"Del","Flik","Innehåll","Stöd för användning"]
[null,1,"1.1. Nulägesanalys","Nulägesanalys av patientsäkerhetsarbetet i regionen, uppdelad utifrån sex områden: fem fokusområden samt grundläggande förutsättningar.  Totalt omfattar dessa områden 28 patientsäkerhetsteman. Den grundläggande förutsättningen \"Patienten som medskapare\" inkluderar även 5 delaspekter. \n\nFör respektive tema ställs tre flervalsfrågor (A-C) samt en fritextfråga (D).","Här genomför ni nulägesanalysen. Ljust orangea svarsfält innehåller svarsalternativ. Grå svarsfält fylls i med fritext. \n1. Välj rätt region/organisation från rullistan överst i fliken \n2. Skriv vilka som genomför nulägesanalysen samt vilka delar av regionens hälso- och sjukvård som inkluderats i nulägesanalysen \n3. Besvara A-C frågor för respektive tema/delaspekt \n4. Skriv en kortfattad förklaring av ert resonemang under fråga D för respektive tema/delaspekt\n\nFem möjliga svarsalternativ finns för A-C-frågorna (se beskrivningar av dessa i  genomförandestödet). För att helt ta bort ett ifyllt svar markera cellen och tryck på \"Delete\"-knappen på tangentbordet. För att komplettera ett fritextsvar - dubbelklicka först på fältet där ni vill skriva ytterligare text.\n\nEfter att samtliga frågor besvarats, använd knappen \"Visa resultat av nulägesanalys\" för att gå vidare till resultatet."]
[null,null,"1.2. Resultat av nulägesanalys","Automatiskt genererad sammanställning av resultatet från genomförd nulägesanalys.","Efter genomförd nulägesanalys får ni här en överblick över teman med väl fungerande patientsäkerhetsarbete, teman med identifierade utmaningar/utvecklingsområden samt teman där det anses saknas tillräcklig information om nuläget. Översikten kan skrivas ut.\n\nFör att gå vidare till del 2 för att prioritera teman och identifiera möjliga insatser, tryck på knappen \"Gå vidare till del 2 för att identifiera och prioritera möjliga insatser\""]
[null,2,"2.1. Viktiga utmaningar","Flik för att, utifrån resultatet av nulägesanalysen, identifiera de teman som anses viktiga att hantera för att stärka patientsäkerheten. Denna prioritering görs i kolumnen längst till höger. ","Markera de teman med någon form av utmaning eller brist på information om nuläget som enligt er bedömning är prioriterade att hantera. Detta görs genom att klicka på den orangea cellen till höger om temat och välja \"Prioritera\" i listan, alternativt genom att skriva Prioritera i fältet. Det går även att markera eller skriva \"Arbete pågår\", \"Under kontroll\" eller \"Avvakta\" för de teman ni inte väljer att prioritera i detta steg, men detta är inte nödvändigt för att gå vidare. Observera att det i nästa steg endast är möjligt att ta fram insatser för de teman ni valt att prioritera i detta steg.\n\nKlicka sedan på knappen \"Gå vidare till nästa steg\""]
[null,null,"2.2. Möjliga insatser","Flik för att beskriva möjliga insatser kopplade till de teman som prioriterats i föregående steg. För respektive insats beskrivs även vilken aktör som bör agera och en bedömning av resursåtgång och förväntad effekt genomförs. ","Fyll i de grå och orangea fälten:\n1. Välj område\n2. Välj det tema inom området som du vill beskriva en insats för\n3. Beskriv insatsen och aktör i de grå fritextfälten\n4. Välj nästa tema att beskriva en insats för. Notera att det kan vara relevant att välja samma tema flera gånger, då flera insatser kan vara relevanta, exempelvis då olika aktörer i regionen behöver genomföra olika typer av insatser.\n5. Efter att insatser och aktör formulerats för samtliga prioriterade teman: genomför en bedömning av uppskattad resursåtgång och förväntad effekt för att genomföra respektive insats. Bedömningen genererar prioriteringsordningen längst till höger. \n\nTryck sedan på knappen \"Gå vidare till sammanställning\""]
[null,null,"2.3. Sammanställning ","Automatiskt genererad sammanställning av insatserna sorterade i prioriteringsordningen. ","Här får ni en överblick över insatserna i prioriteringsordning, där de insatser som bedöms kräva minst resurser och innebära störst förväntad nytta listas överst. Prioriteringsvärdena ligger mellan 7 och 2, där 7 är det högsta möjliga prioriteringsvärdet. Sammanställningen är ett stöd för att kunna ta fram en plan för regionens patientsäkerhetsarbete.\n\nFör att filtrera och sortera i resultatet, använd pilknapparna i rubrikraden (se rödmarkerat exempel nedan):\n\n\n\n"]
[]
[null,"Svarsalternativ för nulägesanalysens flervalsfrågor"]
[null,"Svarsalternativ",null,"Fylls i när följande gäller","Symbol i resultatfliken "]
[null,"Ja",null,"När det går att svara ja för samtliga delar av regionens hälso- och sjukvård som nulägesanalysen avser.",2]
[null,"Ja, i huvudsak",null,"När det går att svara ja, med mindre undantag inom de delar av hälso- och sjukvården i regionen som nulägesanalysen avser.",1]
[null,"Till viss del ",null,"När det går att svara ja bara till viss del eller för vissa delar av den hälso- och sjukvård i regionen som nulägesanalysen avser. Ett eller flera viktiga undantag kan finnas, exempelvis för en av de stora patientgrupperna, inom vissa av verksamheterna eller inom regionledningen.",-1]
[null,"Nej",null,"När svaret är nej för samtliga delar av regionens hälso- och sjukvård som nulägesanalysen avser.",-2]
[null,"Tillräcklig info saknas",null,"När de som genomför nulägesanalysen har brist på information om nuläget i regionen/de delar av regionens hälso- och sjukvård som nulägesanalysen avser. Detta svarsalternativ används när det finns ett behov av ytterligare kartläggning/inhämtning av information för att besvara om utmaningar föreligger eller ej.",0]

{"sheet":"1.1. Nulägesanalys","index":1,"n_rows":450,"n_cols":9,"rows_kept":450,"cut":false,"hidden":false,"merged":[[8,7,33,8],[62,7,71,8],[2,1,2,4],[4,1,4,4],[1,2,1,4],[6,1,6,4],[3,1,3,4],[5,1,5,4],[449,1,451,4]]}
[]
[null," ","Kort instruktion: I denna flik genomför ni er nulägesanalys. Ange först bakgrundsinformation. Tryck på cellen nedan för att välja er region (alternativt organisation). I fälten under fyller ni i vilka aktörer/personer som deltagit i genomförandet samt vilka delar av er hälso- och sjukvård som nulägesanalysen avser, inklusive tidpunkt (exempelvis hela regionen eller ett specifikt verksamhetsområde, VT2021). Se s. 15 i genomförandestödet för exempel på hur det går att organisera arbetet med verktyget."]
[null,"Välj region från listan (alternativt organisation)"]
[null,"Nulägesanalys genomförd av:"]
[null,null,null,null,null,null,null,"A-C-frågor besvarade",{"$f":"COUNTIF($D$14:$D$500,\">\"\"\")","v":0}]
[null,"Nulägesanalysen avser:"]
[null,null,null,null,null,null,null,"A-C-frågor som återstår att besvara",{"$f":"99-I5","v":99}]
[]
[null,null,"Grundläggande förutsättningar för patientsäkerhetsarbete",null,null,null,null,"Forts. instruktion \nEfter att ni fyllt i bakgrundinformationen, påbörja nulägesanalysen.\n1. Besvara frågorna A-C för temat (klicka två gånger på svarsfältet för att se svarsalternativen)\n2. Beskriv i fritextfältet under fråga D en kortfattad förklaring av ert resonemang kring svaren i frågorna A-C  samt notera hinder och möjliggörare som ni ser för ett patientsäkert arbete inom temat \n3. Gå vidare till nästa tema\n4. När hela nulägesanalysen genomförts, gå vidare till resultatet. OBS. Använd knappen \"Visa resultat av nulägesanalys\" för att gå vidare \n\nLästips i genomförandestödet:\n- Instruktioner och tips: s. 22\n- Beskrivningar av teman: s. 42"]
[]
[]
[null,"0.1","Engagerad ledning och tydlig styrning","Svar","Besvarad"]
[]
[null,"A","Har ledningen och verksamhetsledningarna kunskap om vilket ansvar de har och hur de ska styra och leda för säker vård?",null,{"$f":"IF(D14>\"\",\"þ\",\"o\")","v":"o"}]
[]
[null,"B","Har ledningen och verksamheterna de stöd de behöver för att styra och leda för säker vård?",null,{"$f":"IF(D16>\"\",\"þ\",\"o\")","v":"o"}]
[]
[null,"C","Används dessa stöd och främjar styrningen och ledningen patientsäkerheten?",null,{"$f":"IF(D18>\"\",\"þ\",\"o\")","v":"o"}]
[]
[null,"D","Beskriv kortfattat de eventuella utmaningarna. Finns hinder eller möjliggörare för ett patientsäkert arbete inom temat?:"]
[]
[]
[]
[]
[null,"0.2","En god säkerhetskultur"]
[]
[null,"A","Har ledningen och verksamheterna kunskap om vad som kännetecknar en god säkerhetskultur?",null,{"$f":"IF(D27>\"\",\"þ\",\"o\")","v":"o"}]
[]
[null,"B","Har ledningen och verksamheterna de stöd de behöver för att främja en god säkerhetskultur?",null,{"$f":"IF(D29>\"\",\"þ\",\"o\")","v":"o"}]
[]
[null,"C","Finns det en kultur i alla verksamheter och inom ledningen som stärker patientsäkerheten?",null,{"$f":"IF(D31>\"\",\"þ\",\"o\")","v":"o"}]
[]
[null,"D","Beskriv kortfattat de eventuella utmaningarna. Finns hinder eller möjliggörare för ett patientsäkert arbete inom temat?:"]
[]
[]
[]
[]
[null,"0.3","Adekvat kunskap och kompetens"]
[]
[null,"A","Har ledningen och verksamheterna kunskap om vad chefer och medarbetare behöver veta och kunna för att arbeta patientsäkert?",null,{"$f":"IF(D40>\"\",\"þ\",\"o\")","v":"o"}]
[]
[null,"B","Erbjuder ledningen och verksamheterna ändamålsenlig utbildning och andra typer av stöd riktade till chefer och medarbetare för att bidra till adekvat kunskap och kompetens?",null,{"$f":"IF(D42>\"\",\"þ\",\"o\")","v":"o"}]
[]
[null,"C","Har verksamheterna en ändamålsenlig yrkesmässig kompetenssammansättning och har chefer och medarbetare adekvat kunskapsnivå om patientsäkerhet?",null,{"$f":"IF(D44>\"\",\"þ\",\"o\")","v":"o"}]
[]
[null,"D","Beskriv kortfattat de eventuella utmaningarna. Finns hinder eller möjliggörare för ett patientsäkert arbete inom temat?:"]
[]
[]
[]
[]
[null,"0.4","Patienten som medskapare"]
[]
[null,"A","Har ledningen och verksamheterna kunskap om varför patientmedverkan i vård och utvecklingsarbete är viktigt och hur patienter och närstående ska göras delaktiga?",null,{"$f":"IF(D53>\"\",\"þ\",\"o\")","v":"o"}]
[]
[null,"B","Har ledningen och verksamheterna de stöd de behöver för att göra patienter och närstående delaktiga i vård och utvecklingsarbete?",null,{"$f":"IF(D55>\"\",\"þ\",\"o\")","v":"o"}]
[]
[null,"C","Görs patienter och närstående till medskapare både i den egna vården och i vårdens utvecklingsarbete i tillräckligt stor utsträckning?",null,{"$f":"IF(D57>\"\",\"þ\",\"o\")","v":"o"}]
[]
[null,"D","Beskriv kortfattat de eventuella utmaningarna. Finns hinder eller möjliggörare för ett patientsäkert arbete inom temat?:"]
[]
[]
[]
[null,null,null,null,null,null,null,"Fem delaspekter utifrån fokusområdena\nAtt involvera patienten är en viktig del av arbetet inom samtliga fokusområden. Inom den grundläggande förutsättningen Patienten som medskapare svarar ni här på frågor utifrån de fem fokusområdena (1-5). Genom att samla dessa aspekter får ni i nästa flik en samlad bild av arbetet för att involvera patienter - utifrån samtliga fokusområden. "]
[null,"0.4:1","Patienter och närståendes synpunkter och klagomål"]
[]
[null,"A","Har ledningen och verksamheterna kunskap om hur patienter och närståendes synpunkter och klagomål om händelser som medfört eller hade kunnat medföra en vårdskada kan inhämtas och tas tillvara?",null,{"$f":"IF(D66>\"\",\"þ\",\"o\")","v":"o"}]
[]
[null,"B","Finns ändamålsenliga stöd, inklusive klagomålshanteringssystem, riktade till patienter, närstående och medarbetare för att möjliggöra insamling av patienter och närståendes synpunkter och klagomål?",null,{"$f":"IF(D68>\"\",\"þ\",\"o\")","v":"o"}]
[]
[null,"C","Används de system som finns för att samla in och analysera synpunkter och klagomål från patienter och närstående?",null,"o"]
[]
[null,"D","Beskriv kortfattat de eventuella utmaningarna. Finns hinder eller möjliggörare för ett patientsäkert arbete inom temat?:"]
[]
[]
[]
[]
[null,"0.4:2","Patientmedverkan i utveckling av processer och arbetssätt"]
[]
[null,"A","Har ledningen och verksamheterna kunskap om hur patienter och närstående kan involveras i utvecklingen av processer och arbetssätt?",null,{"$f":"IF(D79>\"\",\"þ\",\"o\")","v":"o"}]
[]
[null,"B","Har ledningen och verksamheterna de stöd de behöver för att involvera patienter och närstående i utvecklingen av processer och arbetssätt?",null,{"$f":"IF(D81>\"\",\"þ\",\"o\")","v":"o"}]
[]
[null,"C","Involveras patienter och närstående på ett lämpligt sätt i utvecklingen av processer och arbetssätt? ",null,"o"]
[]
[null,"D","Beskriv kortfattat de eventuella utmaningarna. Finns hinder eller möjliggörare för ett patientsäkert arbete inom temat?:"]
[]
[]
[]
[]
[null,"0.4:3","Patientens delaktighet i den egna vården"]
[]
[null,"A","Har ledningen och verksamheterna kunskap om hur patienter och närstående kan involveras som medskapare för att göra vården säkrare?",null,{"$f":"IF(D92>\"\",\"þ\",\"o\")","v":"o"}]
[]
[null,"B","Har ledningen och verksamheterna de stöd de behöver för att involvera patienter och närstående i vården, utifrån deras egna förutsättningar, på ett sätt som gör vården säkrare?",null,{"$f":"IF(D94>\"\",\"þ\",\"o\")","v":"o"}]
[]
[null,"C","Är patienter och närstående involverade i hälso-och sjukvården på ett sätt som främjar patientsäkerheten?",null,"o"]
[]
[null,"D","Beskriv kortfattat de eventuella utmaningarna. Finns hinder eller möjliggörare för ett patientsäkert arbete inom temat?:"]
[]
[]
[]
[]
[null,"0.4:4","Patientperspektiv i analys, lärande och utveckling"]
[]
[null,"A","Har ledningen och verksamheterna kunskap om hur patienters perspektiv kan säkerställas i arbetet med analys och lärande?",null,{"$f":"IF(D105>\"\",\"þ\",\"o\")","v":"o"}]
[]
[null,"B","Har ledningen och verksamheterna tillgång till de stöd de behöver för att ta tillvara på patientperspektivet i uppföljning och analyser?",null,{"$f":"IF(D107>\"\",\"þ\",\"o\")","v":"o"}]
[]
[null,"C","Sker ett kontinuerligt och ändamålsenligt lärande utifrån ett patientperspektiv som bidrar till ökad patientsäkerhet?",null,{"$f":"IF(D109>\"\",\"þ\",\"o\")","v":"o"}]
[]
[null,"D","Beskriv kortfattat de eventuella utmaningarna. Finns hinder eller möjliggörare för ett patientsäkert arbete inom temat?:"]
[]
[]
[]
[]
[null,"0.4:5","Patientmedverkan för ökad riskmedvetenhet och beredskap"]
[]
[null,"A","Har ledningen och verksamheterna kunskap om hur patienters och närståendes perspektiv kan integreras i arbetet för en ökad riskmedvetenhet och beredskap? ",null,{"$f":"IF(D118>\"\",\"þ\",\"o\")","v":"o"}]
[]
[null,"B","Har ledningen och verksamheterna de stöd och metoder de behöver för att involvera patienter och närstående? Exempelvis relevanta metoder för att samla in och tillgodogöra sig kunskap om patientupplevda risker i vården eller instruktioner för hur inkludering kan ske i beredskapsarbete.",null,{"$f":"IF(D120>\"\",\"þ\",\"o\")","v":"o"}]
[]
[null,"C","Inhämtas och inkluderas patient- och närståendeperspektiv i den långsiktiga planeringen?",null,"o"]
[]
[null,"D","Beskriv kortfattat de eventuella utmaningarna. Finns hinder eller möjliggörare för ett patientsäkert arbete inom temat?:"]
[]
[]
[]
[null,1,"Fokusområde 1: Öka kunskap om inträffade vårdskador"]
[]
[]
[null,"1.1","Avvikelserapportering"]
[]
[null,"A","Har ledningen och verksamheterna kunskap om varför avvikelserapportering är viktigt, när det bör göras en avvikelserapport och vem som är ansvarig?",null,{"$f":"IF(D133>\"\",\"þ\",\"o\")","v":"o"}]
[]
[null,"B","Har ledningen och verksamheterna de stöd de behöver för att genomföra avvikelserapportering i enlighet med lag och bästa praxis? Ex. stöd i form av ändamålsenliga avvikelserapporteringssystem, ledningens fokus, tid för avvikelserapportering, användarstöd etc.",null,{"$f":"IF(D135>\"\",\"þ\",\"o\")","v":"o"}]
[]
[null,"C","Sker rapportering när avvikelser inträffar i vården av patienter och i andra sammanhang med bäring på patientsäkerheten?",null,{"$f":"IF(D137>\"\",\"þ\",\"o\")","v":"o"}]
[]
[null,"D","Beskriv kortfattat de eventuella utmaningarna. Finns hinder eller möjliggörare för ett patientsäkert arbete inom temat?:"]
[]
[]
[]
[]
[null,"1.2","Utredning efter vårdskador och andra avvikelser samt återkoppling till berörda"]
[]
[null,"A","Har ledningen och verksamheterna kunskap om hur utredning och händelseanalys efter vårdskador och andra avvikelser kan utföras på ett ändamålsenligt sätt?",null,{"$f":"IF(D146>\"\",\"þ\",\"o\")","v":"o"}]
[]
[null,"B","Har ledningen och verksamheterna de stöd de behöver för att genomföra utredning och händelseanalys?",null,{"$f":"IF(D148>\"\",\"þ\",\"o\")","v":"o"}]
[]
[null,"C","Genomförs utredningar inklusive analys av bakomliggande orsaker och återkoppling till berörda i samband med vårdskador och andra avvikelser?",null,{"$f":"IF(D150>\"\",\"þ\",\"o\")","v":"o"}]
[]
[null,"D","Beskriv kortfattat de eventuella utmaningarna. Finns hinder eller möjliggörare för ett patientsäkert arbete inom temat?:"]
[]
[]
[]
[]
[null,"1.3","Minimering av effekter av negativa händelser"]
[]
[null,"A","Har ledningen och verksamheterna kunskap om hur effekter av negativa händelser kan minimeras?",null,{"$f":"IF(D159>\"\",\"þ\",\"o\")","v":"o"}]
[]
[null,"B","Har ledningen och verksamheterna de stöd de behöver för att minimera effekter av negativa händelser? ",null,{"$f":"IF(D161>\"\",\"þ\",\"o\")","v":"o"}]
[]
[null,"C","Sker ett ändamålsenligt arbete för att minimera effekter av negativa händelser i hälso- och sjukvården i regionen?",null,{"$f":"IF(D163>\"\",\"þ\",\"o\")","v":"o"}]
[]
[null,"D","Beskriv kortfattat de eventuella utmaningarna. Finns hinder eller möjliggörare för ett patientsäkert arbete inom temat?:"]
[]
[]
[]
[]
[null,"1.4a","Mätning och sammanställning av information om vårdskador"]
[]
[null,"A","Har ledningen och verksamheterna kunskap om hur de ska mäta och sammanställa information om vårdskador? ",null,{"$f":"IF(D172>\"\",\"þ\",\"o\")","v":"o"}]
[]
[null,"B","Har ledningen och verksamheterna de stöd de behöver för att identifiera, mäta och sammanställa statistik kring vårdskador? Ex. i form av avvikelserapporteringssystem, mätinstrument, instruktioner?",null,{"$f":"IF(D174>\"\",\"þ\",\"o\")","v":"o"}]
[]
[null,"C","Genomförs identifiering, mätning och sammanställning av vårdskador som ger en samlad bild av vanliga och allvarliga vårdskador i regionen? ",null,"o"]
[]
[null,"D","Beskriv kortfattat de eventuella utmaningarna. Finns hinder eller möjliggörare för ett patientsäkert arbete inom temat?:"]
[]
[]
[]
[]
[null,"1.4b","Mätning och sammanställning av information om vårdskador – i vårdens övergångar"]
[]
[null,"A","Har ledningen och verksamheterna kunskap om hur de ska mäta och sammanställa information om vårdskador som sker specifikt i vårdens övergångar? ",null,{"$f":"IF(D185>\"\",\"þ\",\"o\")","v":"o"}]
[]
[null,"B","Har ledningen och verksamheterna de stöd de behöver för att identifiera, mäta och sammanställa statistik kring vårdskador som sker i vårdens övergångar? ",null,{"$f":"IF(D187>\"\",\"þ\",\"o\")","v":"o"}]
[]
[null,"C","Genomförs identifiering, mätning och sammanställning av vårdskador som ger en samlad bild av vanliga och allvarliga vårdskador som sker i vårdens övergångar?",null,{"$f":"IF(D189>\"\",\"þ\",\"o\")","v":"o"}]
[]
[null,"D","Beskriv kortfattat de eventuella utmaningarna. Finns hinder eller möjliggörare för ett patientsäkert arbete inom temat?:"]
[]
[]
[]
[null,2,"Fokusområde 2: Tillförlitliga och säkra system och processer "]
[]
[]
[null,"2.1a","Tillförlitliga och säkra processer – i vård och behandling"]
[]
[null,"A","Har ledningen och verksamheterna kunskap om vad som är säkra processer för vård och behandling i enlighet med bästa tillgängliga kunskap?",null,{"$f":"IF(D200>\"\",\"þ\",\"o\")","v":"o"}]
[]
[null,"B","Har verksamheterna tillgång till stöd som beskriver och möjliggör användningen av säkra processer?",null,{"$f":"IF(D202>\"\",\"þ\",\"o\")","v":"o"}]
[]
[null,"C","Finns en god följsamhet till säkra processer och rutiner?",null,"o"]
[]
[null,"D","Beskriv kortfattat de eventuella utmaningarna. Finns hinder eller möjliggörare för ett patientsäkert arbete inom temat?:"]
[]
[]
[]
[]
[null,"2.1b","Tillförlitliga och säkra processer – i samordning och informationsdelning mellan aktörer"]
[]
[null,"A","Har ledningen och verksamheterna kunskap om hur samverkan mellan olika vård- och omsorgsgivare kan organiseras på bästa sätt för att skapa säkra övergångar och en sammanhållen vård och omsorg för patienterna?",null,{"$f":"IF(D213>\"\",\"þ\",\"o\")","v":"o"}]
[]
[null,"B","Har ledningen och verksamheterna de stöd de behöver för att skapa förutsättningar för säkra och samordnade vårdövergångar? Finns ex. ändamålsenliga resurser, överenskommelser, processer för sammanhållen planering och lösningar för informationsdelning? ",null,{"$f":"IF(D215>\"\",\"þ\",\"o\")","v":"o"}]
[]
[null,"C","Sker samverkan mellan olika vårdgivare på ett sätt så att vårdövergångar är säkra och så att vården är sammanhållen? ",null,{"$f":"IF(D217>\"\",\"þ\",\"o\")","v":"o"}]
[]
[null,"D","Beskriv kortfattat de eventuella utmaningarna. Finns hinder eller möjliggörare för ett patientsäkert arbete inom temat?:"]
[]
[]
[]
[]
[null,"2.2","Förebyggande arbete för att minska risker för specifika vårdskador"]
[]
[null,"A","Har ledningen och verksamheterna kunskap om hur förebyggande arbete för att minska risker för specifika vårdskador ska genomföras?",null,{"$f":"IF(D226>\"\",\"þ\",\"o\")","v":"o"}]
[]
[null,"B","Har ledningen och verksamheterna de stöd de behöver för att arbeta förebyggande avseende specifika risker, till exempel fallrisk, smittspridning, läkemedelsbiverkningar och undernäring? ",null,{"$f":"IF(D228>\"\",\"þ\",\"o\")","v":"o"}]
[]
[null,"C","Tillämpas ett ändamålsenligt förebyggande arbete för att minska risker för specifika vårdskador, från riskbedömning till genomförande och uppföljning av åtgärder, i hela regionen?",null,{"$f":"IF(D230>\"\",\"þ\",\"o\")","v":"o"}]
[]
[null,"D","Beskriv kortfattat de eventuella utmaningarna. Finns hinder eller möjliggörare för ett patientsäkert arbete inom temat?:"]
[]
[]
[]
[]
[null,"2.3","Verktyg, metoder och arbetssätt för ett patientsäkert arbete"]
[]
[null,"A","Har ledningen och verksamheterna kunskap om vilka verktyg, metoder och arbetssätt som kan stärka patientsäkra arbetssätt?",null,{"$f":"IF(D239>\"\",\"þ\",\"o\")","v":"o"}]
[]
[null,"B","Har ledningen och verksamheterna de stöd de behöver för att tillämpa patientsäkra arbetsätt?",null,{"$f":"IF(D241>\"\",\"þ\",\"o\")","v":"o"}]
[]
[null,"C","Är användningen av verktyg, metoder och arbetssätt som stödjer ett patientsäkert arbetssätt heltäckande i regionen?",null,{"$f":"IF(D243>\"\",\"þ\",\"o\")","v":"o"}]
[]
[null,"D","Beskriv kortfattat de eventuella utmaningarna. Finns hinder eller möjliggörare för ett patientsäkert arbete inom temat?:"]
[]
[]
[]
[]
[null,"2.4","Medicinteknik, medicintekniska produkter, hjälpmedel och välfärdsteknik"]
[]
[null,"A","Har ledningen och verksamheterna kunskap om vad som utgör patientsäker medicinteknik, medicintekniska produkter, hjälpmedel och välfärdsteknik? ",null,{"$f":"IF(D252>\"\",\"þ\",\"o\")","v":"o"}]
[]
[null,"B","Har ledningen och verksamheterna de stöd de behöver för att säkerställa att patientsäkerheten beaktas vid beslut om och användning av medicinteknik, medicintekniska produkter, hjälpmedel och välfärdsteknik?",null,{"$f":"IF(D254>\"\",\"þ\",\"o\")","v":"o"}]
[]
[null,"C","Beaktas patientsäkerheten vid beslut om och användning av medicinteknik, medicintekniska produkter, hjälpmedel och välfärdsteknik i regionen?",null,"o"]
[]
[null,"D","Beskriv kortfattat de eventuella utmaningarna. Finns hinder eller möjliggörare för ett patientsäkert arbete inom temat?:"]
[]
[]
[]
[]
[null,"2.5","Ändamålsenliga vårdmiljöer"]
[]
[null,"A","Har ledningen och verksamheterna kunskap om vad som utgör säkra vårdmiljöer?",null,{"$f":"IF(D265>\"\",\"þ\",\"o\")","v":"o"}]
[]
[null,"B","Har ledningen och verksamheterna det stöd de behöver för att säkerställa ändamålsenliga vårdmiljöer? ",null,{"$f":"IF(D267>\"\",\"þ\",\"o\")","v":"o"}]
[]
[null,"C","Är boenden och lokaler där hälso- och sjukvård bedrivs utformade på ett patientsäkert sätt och sker lämpliga bedömningar och anpassningar vid vård i hemmet?",null,{"$f":"IF(D269>\"\",\"þ\",\"o\")","v":"o"}]
[]
[null,"D","Beskriv kortfattat de eventuella utmaningarna. Finns hinder eller möjliggörare för ett patientsäkert arbete inom temat?:"]
[]
[]
[]
[null,3,"Fokusområde 3: Säker vård här och nu "]
[]
[]
[null,"3.1","Förmåga att förutse variationer och störningar i närtid"]
[]
[null,"A","Har ledningen och verksamheterna kunskap om vilka möjliga variationer och störningar som kan uppstå som kan påverka patientsäkerheten?",null,{"$f":"IF(D280>\"\",\"þ\",\"o\")","v":"o"}]
[]
[null,"B","Har ledningen och verksamheterna de stöd de behöver för att följa och förutse variationer och störningar i närtid?",null,{"$f":"IF(D282>\"\",\"þ\",\"o\")","v":"o"}]
[]
[null,"C","Följer ledningen och verksamheterna variationer och störningar i närtid som kan påverka patientsäkerheten?",null,"o"]
[]
[null,"D","Beskriv kortfattat de eventuella utmaningarna. Finns hinder eller möjliggörare för ett patientsäkert arbete inom temat?:"]
[]
[]
[]
[]
[null,"3.2","Situationsanpassning"]
[]
[null,"A","Har ledningen och verksamheterna kunskap om betydelsen av situationsanpassning och om hur variationer och störningar ska hanteras?",null,{"$f":"IF(D293>\"\",\"þ\",\"o\")","v":"o"}]
[]
[null,"B","Har ledningen och verksamheterna de stöd de behöver för att anpassa vården för att upprätthålla patientsäkerheten under varierande förhållanden? ",null,{"$f":"IF(D295>\"\",\"þ\",\"o\")","v":"o"}]
[]
[null,"C","Har ledningen och verksamheterna förmåga att hantera störningar och variationer i närtid?",null,"o"]
[]
[null,"D","Beskriv kortfattat de eventuella utmaningarna. Finns hinder eller möjliggörare för ett patientsäkert arbete inom temat?:"]
[]
[]
[]
[]
[null,"3.3","Dagligt patientsäkerhetsarbete"]
[]
[null,"A","Har ledningen och verksamheterna kunskap om hur patientsäkerhet kan vara en integrerad del i det dagliga arbetet?",null,{"$f":"IF(D306>\"\",\"þ\",\"o\")","v":"o"}]
[]
[null,"B","Har ledningen och verksamheterna de förutsättningar och stöd de behöver för ett dagligt patientsäkerhetsarbete? ",null,{"$f":"IF(D308>\"\",\"þ\",\"o\")","v":"o"}]
[]
[null,"C","Sker ett ändamålsenligt dagligt patientsäkerhetsarbete i regionen?",null,{"$f":"IF(D310>\"\",\"þ\",\"o\")","v":"o"}]
[]
[null,"D","Beskriv kortfattat de eventuella utmaningarna. Finns hinder eller möjliggörare för ett patientsäkert arbete inom temat?:"]
[]
[]
[]
[]
[null,"3.4","Säker arbetsmiljö"]
[]
[null,"A","Har ledningen och verksamheterna kunskap om vad som utgör en god arbetsmiljö, som också främjar patientsäkerhet?",null,{"$f":"IF(D319>\"\",\"þ\",\"o\")","v":"o"}]
[]
[null,"B","Har ledningen och verksamheterna de stöd de behöver för att säkerställa en god arbetsmiljö?",null,{"$f":"IF(D321>\"\",\"þ\",\"o\")","v":"o"}]
[]
[null,"C","Tillämpar ledningen och verksamheterna stöd och rutiner som bidrar till en säker arbetsmiljö? ",null,{"$f":"IF(D323>\"\",\"þ\",\"o\")","v":"o"}]
[]
[null,"D","Beskriv kortfattat de eventuella utmaningarna. Finns hinder eller möjliggörare för ett patientsäkert arbete inom temat?:"]
[]
[]
[]
[]
[null,"3.5","Säker bemanning"]
[]
[null,"A","Har ledningen och verksamheterna kunskap om vad som utgör en säker bemanning inom sina ansvarsområden?",null,{"$f":"IF(D332>\"\",\"þ\",\"o\")","v":"o"}]
[]
[null,"B","Har ledningen och verksamheterna de stöd de behöver för att planera för och upprätthålla en säker bemanning? ",null,{"$f":"IF(D334>\"\",\"þ\",\"o\")","v":"o"}]
[]
[null,"C","Har verksamheterna en säker bemanning, som utgår från kunskap om medarbetarnas yrkeserfarenhet, kompetens och som främjar kontinuitet?",null,{"$f":"IF(D336>\"\",\"þ\",\"o\")","v":"o"}]
[]
[null,"D","Beskriv kortfattat de eventuella utmaningarna. Finns hinder eller möjliggörare för ett patientsäkert arbete inom temat?:"]
[]
[]
[]
[]
[null,"3.6","Granskning och kontroll av patientsäkerhet inom organisationen och hos andra vårdgivare"]
[]
[null,"A","Har ledningen såväl som verksamheterna kunskap om hur regionens egen granskning går till och varför den är viktig?",null,{"$f":"IF(D345>\"\",\"þ\",\"o\")","v":"o"}]
[]
[null,"B","Finns ändamålsenliga stöd för verksamheter att medverka i granskningen och ger underlagen tillräckligt stöd för ledningen som ska fatta beslut om åtgärder? ",null,{"$f":"IF(D347>\"\",\"þ\",\"o\")","v":"o"}]
[]
[null,"C","Är regionens egen granskning ändamålsenlig och är den tillräcklig för att säkerställa att vården är patientsäker?",null,{"$f":"IF(D349>\"\",\"þ\",\"o\")","v":"o"}]
[]
[null,"D","Beskriv kortfattat de eventuella utmaningarna. Finns hinder eller möjliggörare för ett patientsäkert arbete inom temat?:"]
[]
[]
[]
[null,4,"Fokusområde 4: Stärka analys, lärande och utveckling"]
[]
[]
[null,"4.1","Uppföljning av patientsäkerheten genom insamling och sammanställning av data från flera källor"]
[]
[null,"A","Har ledningen och verksamheterna kunskap om vilka datakällor som kan användas för uppföljning av patientsäkerheten och förutsättningarna för patientsäkerhetsarbete?",null,{"$f":"IF(D360>\"\",\"þ\",\"o\")","v":"o"}]
[]
[null,"B","Har ledningen och verksamheterna de stöd de behöver för att få en samlad bild av patientsäkerheten och förutsättningar för patientsäkerhetsarbetet samt utvecklingen över tid?",null,{"$f":"IF(D362>\"\",\"þ\",\"o\")","v":"o"}]
[]
[null,"C","Sammanställs relevanta data på olika nivåer så att det finns en samlad bild av patientsäkerheten och förutsättningarna för patientsäkerhetsarbete samt utvecklingen över tid?",null,"o"]
[]
[null,"D","Beskriv kortfattat de eventuella utmaningarna. Finns hinder eller möjliggörare för ett patientsäkert arbete inom temat?:"]
[]
[]
[]
[]
[null,"4.2","Analyser som möjliggör lärande"]
[]
[null,"A","Har ledningen och verksamheterna kunskap om vilka analyser som behöver göras för att få en bra förståelse för hur säkerheten ser ut och vilka förbättringar som behövs?",null,{"$f":"IF(D373>\"\",\"þ\",\"o\")","v":"o"}]
[]
[null,"B","Har ledningen och verksamheterna de stöd de behöver för att genomföra analyser? T.ex. stödfunktioner med analys- och statistikkompetens och verktyg för att själva analysera sina resultat. ",null,{"$f":"IF(D375>\"\",\"þ\",\"o\")","v":"o"}]
[]
[null,"C","Görs analyser som ger förståelse för hur patientsäkerheten ser ut, vad som är bakomliggande orsaker till eventuella brister, vad som behöver förstärkas eller förbättras och vilka åtgärder som kan vidtas?",null,"o"]
[]
[null,"D","Beskriv kortfattat de eventuella utmaningarna. Finns hinder eller möjliggörare för ett patientsäkert arbete inom temat?:"]
[]
[]
[]
[]
[null,"4.3","Lärande från analyser och det egna arbetet"]
[]
[null,"A","Har ledningen och verksamheterna kunskap om hur de kan organisera sig för att möjliggöra lärande?",null,{"$f":"IF(D386>\"\",\"þ\",\"o\")","v":"o"}]
[]
[null,"B","Har ledningen och verksamheterna de stöd och verktyg de behöver för att ta tillvara på lärdomar och för att återkoppla resultat från uppföljning och analyser till berörda?",null,{"$f":"IF(D388>\"\",\"þ\",\"o\")","v":"o"}]
[]
[null,"C","Sker ett kontinuerligt och ändamålsenligt lärande som bidrar till ökad patientsäkerhet?",null,"o"]
[]
[null,"D","Beskriv kortfattat de eventuella utmaningarna. Finns hinder eller möjliggörare för ett patientsäkert arbete inom temat?:"]
[]
[]
[]
[]
[null,"4.4","Spridning av kunskap och lärdomar"]
[]
[null,"A","Har ledningen och verksamheterna kunskap om vilka lärdomar som är viktiga att sprida för att bidra till en stärkt patientsäkerhet i hela regionen samt när det är relevant att även sprida kunskapen kommunalt/nationellt?",null,{"$f":"IF(D399>\"\",\"þ\",\"o\")","v":"o"}]
[]
[null,"B","Har ledningen och verksamheterna tillgång till verktyg och stöd för att sprida viktiga lärdomar inom regionen och vid behov även kommunalt/nationellt? ",null,{"$f":"IF(D401>\"\",\"þ\",\"o\")","v":"o"}]
[]
[null,"C","Sprids kunskap och lärdomar på ett ändamålsenligt sätt? ",null,"o"]
[]
[null,"D","Beskriv kortfattat de eventuella utmaningarna. Finns hinder eller möjliggörare för ett patientsäkert arbete inom temat?:"]
[]
[]
[]
[null,5,"Fokusområde 5: Öka riskmedvetenhet och beredskap"]
[]
[]
[null,"5.1","Beredskap och planering för hantering av risker på lång sikt"]
[]
[null,"A","Har ledningen och verksamheterna kunskap om strategiska förändringar och risker som på sikt kan påverka patientsäkerheten? Ex. kompetensförsörjning, digitalisering och omställning till nära vård.",null,{"$f":"IF(D414>\"\",\"þ\",\"o\")","v":"o"}]
[]
[null,"B","Har ledningen och verksamheterna stöd för att bevaka risker på lång sikt och för att arbeta med långsiktig riskhantering? ",null,{"$f":"IF(D416>\"\",\"þ\",\"o\")","v":"o"}]
[]
[null,"C","Genomförs en ändamålsenlig proaktiv planering och riskhantering i hela regionen, som bidrar till att upprätthålla patientsäkerheten även på sikt?",null,"o"]
[]
[null,"D","Beskriv kortfattat de eventuella utmaningarna. Finns hinder eller möjliggörare för ett patientsäkert arbete inom temat?:"]
[]
[]
[]
[]
[null,"5.2","Omvärldsbevakning ur ett patientsäkerhetsperspektiv"]
[]
[null,"A","Har ledningen och verksamheterna kunskap om vilken omvärldsbevakning som är viktig för patientsäkerhetsarbetet och ur ett patientsäkerhetsperspektiv, samt kunskap om information som är av vikt att inhämta från regionens medicinska ledning? Ex. om potentiella akuta eller långsiktiga risker, ny kunskap eller nya stöd.",null,{"$f":"IF(D427>\"\",\"þ\",\"o\")","v":"o"}]
[]
[null,"B","Har ledningen och verksamheterna de stöd de behöver för att säkerställa en god omvärldsbevakning? Ex. i form av instruktioner för omvärldsbevakning eller stödjande verktyg, forum och nätverk.",null,{"$f":"IF(D429>\"\",\"þ\",\"o\")","v":"o"}]
[]
[null,"C","Sker en ändamålsenlig och systematisk omvärldsbevakning utifrån relevanta patientsäkerhetsperspektiv i regionen och verksamheterna?",null,"o"]
[]
[null,"D","Beskriv kortfattat de eventuella utmaningarna. Finns hinder eller möjliggörare för ett patientsäkert arbete inom temat?:"]
[]
[]
[]
[]
[null,"5.3","Färdighetsträning och simulering för ökad beredskap"]
[]
[null,"A","Har ledningen och verksamheterna kunskap om i vilka sammanhang som simulering samt beredskaps- och färdighetsträning kan användas för att utveckla färdigheter och stärka beredskapen ur ett patientsäkerhetsperspektiv?",null,{"$f":"IF(D440>\"\",\"þ\",\"o\")","v":"o"}]
[]
[null,"B","Har ledningen och verksamheterna de stöd de behöver för att genomföra simulering samt beredskaps- och färdighetsträning som omfattar ett patientsäkerhetsperspektiv?",null,{"$f":"IF(D442>\"\",\"þ\",\"o\")","v":"o"}]
[]
[null,"C","Genomförs simulering samt beredskaps- och färdighetsträning som bidrar till stärkt kompetens inom verksamheterna och ökad beredskap i region?",null,"o"]
[]
[null,"D","Beskriv kortfattat de eventuella utmaningarna. Finns hinder eller möjliggörare för ett patientsäkert arbete inom temat?:"]
[]
[]
[]
[null,"Ni har nu gått igenom hela nulägesanalysen. I rutan uppe till höger ser ni om ni har några kvarstående frågor att besvara. Tips: Gå gärna tillbaka till de grundläggande förutsättningarna i början och se om ni fått några nya perspektiv som ni vill tillföra till era svar. Använd sedan knappen \"Visa resultat av nulägesanalys\" för att gå vidare."]

{"sheet":"1.2. Resultat av nulägesanalys","index":2,"n_rows":46,"n_cols":8,"rows_kept":46,"cut":false,"hidden":false,"merged":[[2,1,2,5],[1,1,1,5],[3,1,3,5],[5,1,5,5],[12,7,15,9],[5,8,5,9],[6,8,6,9],[7,8,7,9],[8,8,8,9],[9,8,9,9]]}
[]
[null,{"$f":"\"Resultat av nulägesanalys, \"&'1.1. Nulägesanalys'!B3:E3&\"\"","v":"Resultat av nulägesanalys, Välj region från listan (alternativt organisation)"}]
[null,{"$f":"\"\"&'1.1. Nulägesanalys'!B5:E5&\"\"","v":""}]
[null,{"$f":"\"\"&'1.1. Nulägesanalys'!B7:E7&\"\"","v":""}]
[]
[null,"Information: Nedan visas resultatet av genomförd nulägesanalys. Om ni vill justera/uppdatera analysen, gå till föregående sida i verktyget (flik 1.1). Om delar av beskrivningen av utmaningar, hinder och möjliggörare är dold går det bra att bredda raderna genom att i vänstermarginalen (se pil) dubbelklicka på strecket mellan raderna. OBS. Använd knappen högst upp till höger för att gå vidare till nästa steg.\nLästips i genomförandestödet: s. 25"]
[]
[null,"\nGrundläggande förutsättningar för patientsäkerhetsarbete","A. Tillräcklig kunskap?","B. Tillräckliga stöd?","C. Används kunskap och stöd?","D. Beskrivning av utmaningar, hinder och möjliggörare"]
[null,{"$f":"'1.1. Nulägesanalys'!C12","v":"Engagerad ledning och tydlig styrning"},{"$f":"IFERROR(VLOOKUP('1.1. Nulägesanalys'!D14,Variabler!$D$3:$E$7,2,FALSE),\"\")","v":""},{"$f":"IFERROR(VLOOKUP('1.1. Nulägesanalys'!D16,Variabler!$D$3:$E$7,2,FALSE),\"\")","v":""},{"$f":"IFERROR(VLOOKUP('1.1. Nulägesanalys'!D18,Variabler!$D$3:$E$7,2,FALSE),\"\")","v":""},{"$f":"IF('1.1. Nulägesanalys'!C21>\"\",'1.1. Nulägesanalys'!C21,\"\")","v":""}]
[null,{"$f":"'1.1. Nulägesanalys'!C25","v":"En god säkerhetskultur"},{"$f":"IFERROR(VLOOKUP('1.1. Nulägesanalys'!D27,Variabler!$D$3:$E$7,2,FALSE),\"\")","v":""},{"$f":"IFERROR(VLOOKUP('1.1. Nulägesanalys'!D29,Variabler!$D$3:$E$7,2,FALSE),\"\")","v":""},{"$f":"IFERROR(VLOOKUP('1.1. Nulägesanalys'!D31,Variabler!$D$3:$E$7,2,FALSE),\"\")","v":""},{"$f":"IF('1.1. Nulägesanalys'!C34>\"\",'1.1. Nulägesanalys'!C34,\"\")","v":""}]
[null,{"$f":"'1.1. Nulägesanalys'!C38","v":"Adekvat kunskap och kompetens"},{"$f":"IFERROR(VLOOKUP('1.1. Nulägesanalys'!D40,Variabler!$D$3:$E$7,2,FALSE),\"\")","v":""},{"$f":"IFERROR(VLOOKUP('1.1. Nulägesanalys'!D42,Variabler!$D$3:$E$7,2,FALSE),\"\")","v":""},{"$f":"IFERROR(VLOOKUP('1.1. Nulägesanalys'!D44,Variabler!$D$3:$E$7,2,FALSE),\"\")","v":""},{"$f":"IF('1.1. Nulägesanalys'!C47>\"\",'1.1. Nulägesanalys'!C47,\"\")","v":""}]
[null,{"$f":"'1.1. Nulägesanalys'!C51","v":"Patienten som medskapare"},{"$f":"IFERROR(VLOOKUP('1.1. Nulägesanalys'!D53,Variabler!$D$3:$E$7,2,FALSE),\"\")","v":""},{"$f":"IFERROR(VLOOKUP('1.1. Nulägesanalys'!D55,Variabler!$D$3:$E$7,2,FALSE),\"\")","v":""},{"$f":"IFERROR(VLOOKUP('1.1. Nulägesanalys'!D57,Variabler!$D$3:$E$7,2,FALSE),\"\")","v":""},{"$f":"IF('1.1. Nulägesanalys'!C60>\"\",'1.1. Nulägesanalys'!C60,\"\")","v":""}]
[null,{"$f":"'1.1. Nulägesanalys'!C64","v":"Patienter och närståendes synpunkter och klagomål"},{"$f":"IFERROR(VLOOKUP('1.1. Nulägesanalys'!D66,Variabler!$D$3:$E$7,2,FALSE),\"\")","v":""},{"$f":"IFERROR(VLOOKUP('1.1. Nulägesanalys'!D68,Variabler!$D$3:$E$7,2,FALSE),\"\")","v":""},{"$f":"IFERROR(VLOOKUP('1.1. Nulägesanalys'!D70,Variabler!$D$3:$E$7,2,FALSE),\"\")","v":""},{"$f":"IF('1.1. Nulägesanalys'!C73>\"\",'1.1. Nulägesanalys'!C73,\"\")","v":""},null,"Samlad nulägesbild av arbetet för att involvera patienter \nHär samlas resultatet avseende Patienten som medskapare. De fem kursiva delaspekterna belyser ert arbete för att involvera patienter inom respektive fokusområde (1 --> 5). "]
[null,{"$f":"'1.1. Nulägesanalys'!C77","v":"Patientmedverkan i utveckling av processer och arbetssätt"},{"$f":"IFERROR(VLOOKUP('1.1. Nulägesanalys'!D79,Variabler!$D$3:$E$7,2,FALSE),\"\")","v":""},{"$f":"IFERROR(VLOOKUP('1.1. Nulägesanalys'!D81,Variabler!$D$3:$E$7,2,FALSE),\"\")","v":""},{"$f":"IFERROR(VLOOKUP('1.1. Nulägesanalys'!D83,Variabler!$D$3:$E$7,2,FALSE),\"\")","v":""},{"$f":"IF('1.1. Nulägesanalys'!C86>\"\",'1.1. Nulägesanalys'!C86,\"\")","v":""}]
[null,{"$f":"'1.1. Nulägesanalys'!C90","v":"Patientens delaktighet i den egna vården"},{"$f":"IFERROR(VLOOKUP('1.1. Nulägesanalys'!D92,Variabler!$D$3:$E$7,2,FALSE),\"\")","v":""},{"$f":"IFERROR(VLOOKUP('1.1. Nulägesanalys'!D94,Variabler!$D$3:$E$7,2,FALSE),\"\")","v":""},{"$f":"IFERROR(VLOOKUP('1.1. Nulägesanalys'!D96,Variabler!$D$3:$E$7,2,FALSE),\"\")","v":""},{"$f":"IF('1.1. Nulägesanalys'!C99>\"\",'1.1. Nulägesanalys'!C99,\"\")","v":""}]
[null,{"$f":"'1.1. Nulägesanalys'!C103","v":"Patientperspektiv i analys, lärande och utveckling"},{"$f":"IFERROR(VLOOKUP('1.1. Nulägesanalys'!D105,Variabler!$D$3:$E$7,2,FALSE),\"\")","v":""},{"$f":"IFERROR(VLOOKUP('1.1. Nulägesanalys'!D107,Variabler!$D$3:$E$7,2,FALSE),\"\")","v":""},{"$f":"IFERROR(VLOOKUP('1.1. Nulägesanalys'!D109,Variabler!$D$3:$E$7,2,FALSE),\"\")","v":""},{"$f":"IF('1.1. Nulägesanalys'!C112>\"\",'1.1. Nulägesanalys'!C112,\"\")","v":""}]
[null,{"$f":"'1.1. Nulägesanalys'!C116","v":"Patientmedverkan för ökad riskmedvetenhet och beredskap"},{"$f":"IFERROR(VLOOKUP('1.1. Nulägesanalys'!D118,Variabler!$D$3:$E$7,2,FALSE),\"\")","v":""},{"$f":"IFERROR(VLOOKUP('1.1. Nulägesanalys'!D120,Variabler!$D$3:$E$7,2,FALSE),\"\")","v":""},{"$f":"IFERROR(VLOOKUP('1.1. Nulägesanalys'!D122,Variabler!$D$3:$E$7,2,FALSE),\"\")","v":""},{"$f":"IF('1.1. Nulägesanalys'!C125>\"\",'1.1. Nulägesanalys'!C125,\"\")","v":""}]
[null,"\nFokusområde 1: Öka kunskap om inträffade vårdskador"]
[null,{"$f":"'1.1. Nulägesanalys'!C131","v":"Avvikelserapportering"},{"$f":"IFERROR(VLOOKUP('1.1. Nulägesanalys'!D133,Variabler!$D$3:$E$7,2,FALSE),\"\")","v":""},{"$f":"IFERROR(VLOOKUP('1.1. Nulägesanalys'!D135,Variabler!$D$3:$E$7,2,FALSE),\"\")","v":""},{"$f":"IFERROR(VLOOKUP('1.1. Nulägesanalys'!D137,Variabler!$D$3:$E$7,2,FALSE),\"\")","v":""},{"$f":"IF('1.1. Nulägesanalys'!C140>\"\",'1.1. Nulägesanalys'!C140,\"\")","v":""}]
[null,{"$f":"'1.1. Nulägesanalys'!C144","v":"Utredning efter vårdskador och andra avvikelser samt återkoppling till berörda"},{"$f":"IFERROR(VLOOKUP('1.1. Nulägesanalys'!D146,Variabler!$D$3:$E$7,2,FALSE),\"\")","v":""},{"$f":"IFERROR(VLOOKUP('1.1. Nulägesanalys'!D148,Variabler!$D$3:$E$7,2,FALSE),\"\")","v":""},{"$f":"IFERROR(VLOOKUP('1.1. Nulägesanalys'!D150,Variabler!$D$3:$E$7,2,FALSE),\"\")","v":""},{"$f":"IF('1.1. Nulägesanalys'!C153>\"\",'1.1. Nulägesanalys'!C153,\"\")","v":""}]
[null,{"$f":"'1.1. Nulägesanalys'!C157","v":"Minimering av effekter av negativa händelser"},{"$f":"IFERROR(VLOOKUP('1.1. Nulägesanalys'!D159,Variabler!$D$3:$E$7,2,FALSE),\"\")","v":""},{"$f":"IFERROR(VLOOKUP('1.1. Nulägesanalys'!D161,Variabler!$D$3:$E$7,2,FALSE),\"\")","v":""},{"$f":"IFERROR(VLOOKUP('1.1. Nulägesanalys'!D163,Variabler!$D$3:$E$7,2,FALSE),\"\")","v":""},{"$f":"IF('1.1. Nulägesanalys'!C166>\"\",'1.1. Nulägesanalys'!C166,\"\")","v":""}]
[null,{"$f":"'1.1. Nulägesanalys'!C170","v":"Mätning och sammanställning av information om vårdskador"},{"$f":"IFERROR(VLOOKUP('1.1. Nulägesanalys'!D172,Variabler!$D$3:$E$7,2,FALSE),\"\")","v":""},{"$f":"IFERROR(VLOOKUP('1.1. Nulägesanalys'!D174,Variabler!$D$3:$E$7,2,FALSE),\"\")","v":""},{"$f":"IFERROR(VLOOKUP('1.1. Nulägesanalys'!D176,Variabler!$D$3:$E$7,2,FALSE),\"\")","v":""},{"$f":"IF('1.1. Nulägesanalys'!C179>\"\",'1.1. Nulägesanalys'!C179,\"\")","v":""}]
[null,{"$f":"'1.1. Nulägesanalys'!C183","v":"Mätning och sammanställning av information om vårdskador – i vårdens övergångar"},{"$f":"IFERROR(VLOOKUP('1.1. Nulägesanalys'!D185,Variabler!$D$3:$E$7,2,FALSE),\"\")","v":""},{"$f":"IFERROR(VLOOKUP('1.1. Nulägesanalys'!D187,Variabler!$D$3:$E$7,2,FALSE),\"\")","v":""},{"$f":"IFERROR(VLOOKUP('1.1. Nulägesanalys'!D189,Variabler!$D$3:$E$7,2,FALSE),\"\")","v":""},{"$f":"IF('1.1. Nulägesanalys'!C192>\"\",'1.1. Nulägesanalys'!C192,\"\")","v":""}]
[null,"\nFokusområde 2: Tillförlitliga och säkra system och processer "]
[null,{"$f":"'1.1. Nulägesanalys'!C198","v":"Tillförlitliga och säkra processer – i vård och behandling"},{"$f":"IFERROR(VLOOKUP('1.1. Nulägesanalys'!D200,Variabler!$D$3:$E$7,2,FALSE),\"\")","v":""},{"$f":"IFERROR(VLOOKUP('1.1. Nulägesanalys'!D202,Variabler!$D$3:$E$7,2,FALSE),\"\")","v":""},{"$f":"IFERROR(VLOOKUP('1.1. Nulägesanalys'!D204,Variabler!$D$3:$E$7,2,FALSE),\"\")","v":""},{"$f":"IF('1.1. Nulägesanalys'!C207>\"\",'1.1. Nulägesanalys'!C207,\"\")","v":""}]
[null,{"$f":"'1.1. Nulägesanalys'!C211","v":"Tillförlitliga och säkra processer – i samordning och informationsdelning mellan aktörer"},{"$f":"IFERROR(VLOOKUP('1.1. Nulägesanalys'!D213,Variabler!$D$3:$E$7,2,FALSE),\"\")","v":""},{"$f":"IFERROR(VLOOKUP('1.1. Nulägesanalys'!D215,Variabler!$D$3:$E$7,2,FALSE),\"\")","v":""},{"$f":"IFERROR(VLOOKUP('1.1. Nulägesanalys'!D217,Variabler!$D$3:$E$7,2,FALSE),\"\")","v":""},{"$f":"IF('1.1. Nulägesanalys'!C220>\"\",'1.1. Nulägesanalys'!C220,\"\")","v":""}]
[null,{"$f":"'1.1. Nulägesanalys'!C224","v":"Förebyggande arbete för att minska risker för specifika vårdskador"},{"$f":"IFERROR(VLOOKUP('1.1. Nulägesanalys'!D226,Variabler!$D$3:$E$7,2,FALSE),\"\")","v":""},{"$f":"IFERROR(VLOOKUP('1.1. Nulägesanalys'!D228,Variabler!$D$3:$E$7,2,FALSE),\"\")","v":""},{"$f":"IFERROR(VLOOKUP('1.1. Nulägesanalys'!D230,Variabler!$D$3:$E$7,2,FALSE),\"\")","v":""},{"$f":"IF('1.1. Nulägesanalys'!C233>\"\",'1.1. Nulägesanalys'!C233,\"\")","v":""}]
[null,{"$f":"'1.1. Nulägesanalys'!C237","v":"Verktyg, metoder och arbetssätt för ett patientsäkert arbete"},{"$f":"IFERROR(VLOOKUP('1.1. Nulägesanalys'!D239,Variabler!$D$3:$E$7,2,FALSE),\"\")","v":""},{"$f":"IFERROR(VLOOKUP('1.1. Nulägesanalys'!D241,Variabler!$D$3:$E$7,2,FALSE),\"\")","v":""},{"$f":"IFERROR(VLOOKUP('1.1. Nulägesanalys'!D243,Variabler!$D$3:$E$7,2,FALSE),\"\")","v":""},{"$f":"IF('1.1. Nulägesanalys'!C246>\"\",'1.1. Nulägesanalys'!C246,\"\")","v":""}]
[null,{"$f":"'1.1. Nulägesanalys'!C250","v":"Medicinteknik, medicintekniska produkter, hjälpmedel och välfärdsteknik"},{"$f":"IFERROR(VLOOKUP('1.1. Nulägesanalys'!D252,Variabler!$D$3:$E$7,2,FALSE),\"\")","v":""},{"$f":"IFERROR(VLOOKUP('1.1. Nulägesanalys'!D254,Variabler!$D$3:$E$7,2,FALSE),\"\")","v":""},{"$f":"IFERROR(VLOOKUP('1.1. Nulägesanalys'!D256,Variabler!$D$3:$E$7,2,FALSE),\"\")","v":""},{"$f":"IF('1.1. Nulägesanalys'!C259>\"\",'1.1. Nulägesanalys'!C259,\"\")","v":""}]
[null,{"$f":"'1.1. Nulägesanalys'!C263","v":"Ändamålsenliga vårdmiljöer"},{"$f":"IFERROR(VLOOKUP('1.1. Nulägesanalys'!D265,Variabler!$D$3:$E$7,2,FALSE),\"\")","v":""},{"$f":"IFERROR(VLOOKUP('1.1. Nulägesanalys'!D267,Variabler!$D$3:$E$7,2,FALSE),\"\")","v":""},{"$f":"IFERROR(VLOOKUP('1.1. Nulägesanalys'!D269,Variabler!$D$3:$E$7,2,FALSE),\"\")","v":""},{"$f":"IF('1.1. Nulägesanalys'!C272>\"\",'1.1. Nulägesanalys'!C272,\"\")","v":""}]
[null,"\nFokusområde 3: Säker vård här och nu"]
[null,{"$f":"'1.1. Nulägesanalys'!C278","v":"Förmåga att förutse variationer och störningar i närtid"},{"$f":"IFERROR(VLOOKUP('1.1. Nulägesanalys'!D280,Variabler!$D$3:$E$7,2,FALSE),\"\")","v":""},{"$f":"IFERROR(VLOOKUP('1.1. Nulägesanalys'!D282,Variabler!$D$3:$E$7,2,FALSE),\"\")","v":""},{"$f":"IFERROR(VLOOKUP('1.1. Nulägesanalys'!D284,Variabler!$D$3:$E$7,2,FALSE),\"\")","v":""},{"$f":"IF('1.1. Nulägesanalys'!C287>\"\",'1.1. Nulägesanalys'!C287,\"\")","v":""}]
[null,{"$f":"'1.1. Nulägesanalys'!C291","v":"Situationsanpassning"},{"$f":"IFERROR(VLOOKUP('1.1. Nulägesanalys'!D293,Variabler!$D$3:$E$7,2,FALSE),\"\")","v":""},{"$f":"IFERROR(VLOOKUP('1.1. Nulägesanalys'!D295,Variabler!$D$3:$E$7,2,FALSE),\"\")","v":""},{"$f":"IFERROR(VLOOKUP('1.1. Nulägesanalys'!D297,Variabler!$D$3:$E$7,2,FALSE),\"\")","v":""},{"$f":"IF('1.1. Nulägesanalys'!C300>\"\",'1.1. Nulägesanalys'!C300,\"\")","v":""}]
[null,{"$f":"'1.1. Nulägesanalys'!C304","v":"Dagligt patientsäkerhetsarbete"},{"$f":"IFERROR(VLOOKUP('1.1. Nulägesanalys'!D306,Variabler!$D$3:$E$7,2,FALSE),\"\")","v":""},{"$f":"IFERROR(VLOOKUP('1.1. Nulägesanalys'!D308,Variabler!$D$3:$E$7,2,FALSE),\"\")","v":""},{"$f":"IFERROR(VLOOKUP('1.1. Nulägesanalys'!D310,Variabler!$D$3:$E$7,2,FALSE),\"\")","v":""},{"$f":"IF('1.1. Nulägesanalys'!C313>\"\",'1.1. Nulägesanalys'!C313,\"\")","v":""}]
[null,{"$f":"'1.1. Nulägesanalys'!C317","v":"Säker arbetsmiljö"},{"$f":"IFERROR(VLOOKUP('1.1. Nulägesanalys'!D319,Variabler!$D$3:$E$7,2,FALSE),\"\")","v":""},{"$f":"IFERROR(VLOOKUP('1.1. Nulägesanalys'!D321,Variabler!$D$3:$E$7,2,FALSE),\"\")","v":""},{"$f":"IFERROR(VLOOKUP('1.1. Nulägesanalys'!D323,Variabler!$D$3:$E$7,2,FALSE),\"\")","v":""},{"$f":"IF('1.1. Nulägesanalys'!C326>\"\",'1.1. Nulägesanalys'!C326,\"\")","v":""}]
[null,{"$f":"'1.1. Nulägesanalys'!C330","v":"Säker bemanning"},{"$f":"IFERROR(VLOOKUP('1.1. Nulägesanalys'!D332,Variabler!$D$3:$E$7,2,FALSE),\"\")","v":""},{"$f":"IFERROR(VLOOKUP('1.1. Nulägesanalys'!D334,Variabler!$D$3:$E$7,2,FALSE),\"\")","v":""},{"$f":"IFERROR(VLOOKUP('1.1. Nulägesanalys'!D336,Variabler!$D$3:$E$7,2,FALSE),\"\")","v":""},{"$f":"IF('1.1. Nulägesanalys'!C339>\"\",'1.1. Nulägesanalys'!C339,\"\")","v":""}]
[null,{"$f":"'1.1. Nulägesanalys'!C343","v":"Granskning och kontroll av patientsäkerhet inom organisationen och hos andra vårdgivare"},{"$f":"IFERROR(VLOOKUP('1.1. Nulägesanalys'!D345,Variabler!$D$3:$E$7,2,FALSE),\"\")","v":""},{"$f":"IFERROR(VLOOKUP('1.1. Nulägesanalys'!D347,Variabler!$D$3:$E$7,2,FALSE),\"\")","v":""},{"$f":"IFERROR(VLOOKUP('1.1. Nulägesanalys'!D349,Variabler!$D$3:$E$7,2,FALSE),\"\")","v":""},{"$f":"IF('1.1. Nulägesanalys'!C352>\"\",'1.1. Nulägesanalys'!C352,\"\")","v":""}]
[null,"\nFokusområde 4: Stärka analys, lärande och utveckling"]
[null,{"$f":"'1.1. Nulägesanalys'!C358","v":"Uppföljning av patientsäkerheten genom insamling och sammanställning av data från flera källor"},{"$f":"IFERROR(VLOOKUP('1.1. Nulägesanalys'!D360,Variabler!$D$3:$E$7,2,FALSE),\"\")","v":""},{"$f":"IFERROR(VLOOKUP('1.1. Nulägesanalys'!D362,Variabler!$D$3:$E$7,2,FALSE),\"\")","v":""},{"$f":"IFERROR(VLOOKUP('1.1. Nulägesanalys'!D364,Variabler!$D$3:$E$7,2,FALSE),\"\")","v":""},{"$f":"IF('1.1. Nulägesanalys'!C367>\"\",'1.1. Nulägesanalys'!C367,\"\")","v":""}]
[null,{"$f":"'1.1. Nulägesanalys'!C371","v":"Analyser som möjliggör lärande"},{"$f":"IFERROR(VLOOKUP('1.1. Nulägesanalys'!D373,Variabler!$D$3:$E$7,2,FALSE),\"\")","v":""},{"$f":"IFERROR(VLOOKUP('1.1. Nulägesanalys'!D375,Variabler!$D$3:$E$7,2,FALSE),\"\")","v":""},{"$f":"IFERROR(VLOOKUP('1.1. Nulägesanalys'!D377,Variabler!$D$3:$E$7,2,FALSE),\"\")","v":""},{"$f":"IF('1.1. Nulägesanalys'!C380>\"\",'1.1. Nulägesanalys'!C380,\"\")","v":""}]
[null,{"$f":"'1.1. Nulägesanalys'!C384","v":"Lärande från analyser och det egna arbetet"},{"$f":"IFERROR(VLOOKUP('1.1. Nulägesanalys'!D386,Variabler!$D$3:$E$7,2,FALSE),\"\")","v":""},{"$f":"IFERROR(VLOOKUP('1.1. Nulägesanalys'!D388,Variabler!$D$3:$E$7,2,FALSE),\"\")","v":""},{"$f":"IFERROR(VLOOKUP('1.1. Nulägesanalys'!D390,Variabler!$D$3:$E$7,2,FALSE),\"\")","v":""},{"$f":"IF('1.1. Nulägesanalys'!C393>\"\",'1.1. Nulägesanalys'!C393,\"\")","v":""}]
[null,{"$f":"'1.1. Nulägesanalys'!C397","v":"Spridning av kunskap och lärdomar"},{"$f":"IFERROR(VLOOKUP('1.1. Nulägesanalys'!D399,Variabler!$D$3:$E$7,2,FALSE),\"\")","v":""},{"$f":"IFERROR(VLOOKUP('1.1. Nulägesanalys'!D401,Variabler!$D$3:$E$7,2,FALSE),\"\")","v":""},{"$f":"IFERROR(VLOOKUP('1.1. Nulägesanalys'!D403,Variabler!$D$3:$E$7,2,FALSE),\"\")","v":""},{"$f":"IF('1.1. Nulägesanalys'!C406>\"\",'1.1. Nulägesanalys'!C406,\"\")","v":""}]
[null,"\nFokusområde 5: Öka riskmedvetenhet och beredskap"]
[null,{"$f":"'1.1. Nulägesanalys'!C412","v":"Beredskap och planering för hantering av risker på lång sikt"},{"$f":"IFERROR(VLOOKUP('1.1. Nulägesanalys'!D414,Variabler!$D$3:$E$7,2,FALSE),\"\")","v":""},{"$f":"IFERROR(VLOOKUP('1.1. Nulägesanalys'!D416,Variabler!$D$3:$E$7,2,FALSE),\"\")","v":""},{"$f":"IFERROR(VLOOKUP('1.1. Nulägesanalys'!D418,Variabler!$D$3:$E$7,2,FALSE),\"\")","v":""},{"$f":"IF('1.1. Nulägesanalys'!C421>\"\",'1.1. Nulägesanalys'!C421,\"\")","v":""}]
[null,{"$f":"'1.1. Nulägesanalys'!C425","v":"Omvärldsbevakning ur ett patientsäkerhetsperspektiv"},{"$f":"IFERROR(VLOOKUP('1.1. Nulägesanalys'!D427,Variabler!$D$3:$E$7,2,FALSE),\"\")","v":""},{"$f":"IFERROR(VLOOKUP('1.1. Nulägesanalys'!D429,Variabler!$D$3:$E$7,2,FALSE),\"\")","v":""},{"$f":"IFERROR(VLOOKUP('1.1. Nulägesanalys'!D431,Variabler!$D$3:$E$7,2,FALSE),\"\")","v":""},{"$f":"IF('1.1. Nulägesanalys'!C434>\"\",'1.1. Nulägesanalys'!C434,\"\")","v":""}]
[null,{"$f":"'1.1. Nulägesanalys'!C438","v":"Färdighetsträning och simulering för ökad beredskap"},{"$f":"IFERROR(VLOOKUP('1.1. Nulägesanalys'!D440,Variabler!$D$3:$E$7,2,FALSE),\"\")","v":""},{"$f":"IFERROR(VLOOKUP('1.1. Nulägesanalys'!D442,Variabler!$D$3:$E$7,2,FALSE),\"\")","v":""},{"$f":"IFERROR(VLOOKUP('1.1. Nulägesanalys'!D444,Variabler!$D$3:$E$7,2,FALSE),\"\")","v":""},{"$f":"IF('1.1. Nulägesanalys'!C447>\"\",'1.1. Nulägesanalys'!C447,\"\")","v":""}]

{"sheet":"2.1. Viktiga utmaningar","index":3,"n_rows":44,"n_cols":9,"rows_kept":44,"cut":false,"hidden":false,"merged":[[1,1,1,6],[2,1,2,6],[3,1,3,6],[5,8,11,9]]}
[]
[null,{"$f":"\"Prioritering av utmaningar, \"&'1.1. Nulägesanalys'!B3:E3&\"\"","v":"Prioritering av utmaningar, Välj region från listan (alternativt organisation)"}]
[null,{"$f":"\"\"&'1.1. Nulägesanalys'!B5:E5&\"\"","v":""}]
[null,{"$f":"\"\"&'1.1. Nulägesanalys'!B7:E7&\"\"","v":""}]
[]
[null,"Grundläggande förutsättningar för patientsäkerhetsarbete","Finns kunskap?","Finns stöd?","Används kunskap och stöd?","D. Beskrivning av utmaningar, hinder och möjliggörare","Välj prioriterade teman:",null,"Kort instruktion:\nPå denna sida markerar ni teman som är prioriterade att ta fram insatser för:\n1. I kolumn G: Välj \"Prioritera\" för dessa teman \n2. Om ni vill kan ni även beskriva de teman ni vill avvakta med, där ni redan genomför arbeten eller där temat är under kontroll (detta är inte nödvändigt för att gå vidare) \n3. Klicka på knappen \"Gå vidare till nästa steg\"\n\nOm delar av beskrivningen av utmaningar, hinder och möjliggörare är dold går det bra att bredda raderna genom att i vänstermarginalen dubbelklicka på strecket mellan raderna.\n\nLästips i genomförandestödet: s. 27"]
[null,{"$f":"'1.2. Resultat av nulägesanalys'!B9","v":"Engagerad ledning och tydlig styrning"},{"$f":"'1.2. Resultat av nulägesanalys'!C9","v":""},{"$f":"'1.2. Resultat av nulägesanalys'!D9","v":""},{"$f":"'1.2. Resultat av nulägesanalys'!E9","v":""},{"$f":"'1.2. Resultat av nulägesanalys'!F9","v":""}]
[null,{"$f":"'1.2. Resultat av nulägesanalys'!B10","v":"En god säkerhetskultur"},{"$f":"'1.2. Resultat av nulägesanalys'!C10","v":""},{"$f":"'1.2. Resultat av nulägesanalys'!D10","v":""},{"$f":"'1.2. Resultat av nulägesanalys'!E10","v":""},{"$f":"'1.2. Resultat av nulägesanalys'!F10","v":""}]
[null,{"$f":"'1.2. Resultat av nulägesanalys'!B11","v":"Adekvat kunskap och kompetens"},{"$f":"'1.2. Resultat av nulägesanalys'!C11","v":""},{"$f":"'1.2. Resultat av nulägesanalys'!D11","v":""},{"$f":"'1.2. Resultat av nulägesanalys'!E11","v":""},{"$f":"'1.2. Resultat av nulägesanalys'!F11","v":""}]
[null,{"$f":"'1.2. Resultat av nulägesanalys'!B12","v":"Patienten som medskapare"},{"$f":"'1.2. Resultat av nulägesanalys'!C12","v":""},{"$f":"'1.2. Resultat av nulägesanalys'!D12","v":""},{"$f":"'1.2. Resultat av nulägesanalys'!E12","v":""},{"$f":"'1.2. Resultat av nulägesanalys'!F12","v":""}]
[null,{"$f":"'1.2. Resultat av nulägesanalys'!B13","v":"Patienter och närståendes synpunkter och klagomål"},{"$f":"'1.2. Resultat av nulägesanalys'!C13","v":""},{"$f":"'1.2. Resultat av nulägesanalys'!D13","v":""},{"$f":"'1.2. Resultat av nulägesanalys'!E13","v":""},{"$f":"'1.2. Resultat av nulägesanalys'!F13","v":""}]
[null,{"$f":"'1.2. Resultat av nulägesanalys'!B14","v":"Patientmedverkan i utveckling av processer och arbetssätt"},{"$f":"'1.2. Resultat av nulägesanalys'!C14","v":""},{"$f":"'1.2. Resultat av nulägesanalys'!D14","v":""},{"$f":"'1.2. Resultat av nulägesanalys'!E14","v":""},{"$f":"'1.2. Resultat av nulägesanalys'!F14","v":""}]
[null,{"$f":"'1.2. Resultat av nulägesanalys'!B15","v":"Patientens delaktighet i den egna vården"},{"$f":"'1.2. Resultat av nulägesanalys'!C15","v":""},{"$f":"'1.2. Resultat av nulägesanalys'!D15","v":""},{"$f":"'1.2. Resultat av nulägesanalys'!E15","v":""},{"$f":"'1.2. Resultat av nulägesanalys'!F15","v":""}]
[null,{"$f":"'1.2. Resultat av nulägesanalys'!B16","v":"Patientperspektiv i analys, lärande och utveckling"},{"$f":"'1.2. Resultat av nulägesanalys'!C16","v":""},{"$f":"'1.2. Resultat av nulägesanalys'!D16","v":""},{"$f":"'1.2. Resultat av nulägesanalys'!E16","v":""},{"$f":"'1.2. Resultat av nulägesanalys'!F16","v":""}]
[null,{"$f":"'1.2. Resultat av nulägesanalys'!B17","v":"Patientmedverkan för ökad riskmedvetenhet och beredskap"},{"$f":"'1.2. Resultat av nulägesanalys'!C17","v":""},{"$f":"'1.2. Resultat av nulägesanalys'!D17","v":""},{"$f":"'1.2. Resultat av nulägesanalys'!E17","v":""},{"$f":"'1.2. Resultat av nulägesanalys'!F17","v":""}]
[null,"\nFokusområde 1: Öka kunskap om inträffade vårdskador"]
[null,{"$f":"'1.2. Resultat av nulägesanalys'!B19","v":"Avvikelserapportering"},{"$f":"'1.2. Resultat av nulägesanalys'!C19","v":""},{"$f":"'1.2. Resultat av nulägesanalys'!D19","v":""},{"$f":"'1.2. Resultat av nulägesanalys'!E19","v":""},{"$f":"'1.2. Resultat av nulägesanalys'!F19","v":""}]
[null,{"$f":"'1.2. Resultat av nulägesanalys'!B20","v":"Utredning efter vårdskador och andra avvikelser samt återkoppling till berörda"},{"$f":"'1.2. Resultat av nulägesanalys'!C20","v":""},{"$f":"'1.2. Resultat av nulägesanalys'!D20","v":""},{"$f":"'1.2. Resultat av nulägesanalys'!E20","v":""},{"$f":"'1.2. Resultat av nulägesanalys'!F20","v":""}]
[null,{"$f":"'1.2. Resultat av nulägesanalys'!B21","v":"Minimering av effekter av negativa händelser"},{"$f":"'1.2. Resultat av nulägesanalys'!C21","v":""},{"$f":"'1.2. Resultat av nulägesanalys'!D21","v":""},{"$f":"'1.2. Resultat av nulägesanalys'!E21","v":""},{"$f":"'1.2. Resultat av nulägesanalys'!F21","v":""}]
[null,{"$f":"'1.2. Resultat av nulägesanalys'!B22","v":"Mätning och sammanställning av information om vårdskador"},{"$f":"'1.2. Resultat av nulägesanalys'!C22","v":""},{"$f":"'1.2. Resultat av nulägesanalys'!D22","v":""},{"$f":"'1.2. Resultat av nulägesanalys'!E22","v":""},{"$f":"'1.2. Resultat av nulägesanalys'!F22","v":""}]
[null,{"$f":"'1.2. Resultat av nulägesanalys'!B23","v":"Mätning och sammanställning av information om vårdskador – i vårdens övergångar"},{"$f":"'1.2. Resultat av nulägesanalys'!C23","v":""},{"$f":"'1.2. Resultat av nulägesanalys'!D23","v":""},{"$f":"'1.2. Resultat av nulägesanalys'!E23","v":""},{"$f":"'1.2. Resultat av nulägesanalys'!F23","v":""}]
[null,"\nFokusområde 2: Tillförlitliga och säkra system och processer "]
[null,{"$f":"'1.2. Resultat av nulägesanalys'!B25","v":"Tillförlitliga och säkra processer – i vård och behandling"},{"$f":"'1.2. Resultat av nulägesanalys'!C25","v":""},{"$f":"'1.2. Resultat av nulägesanalys'!D25","v":""},{"$f":"'1.2. Resultat av nulägesanalys'!E25","v":""},{"$f":"'1.2. Resultat av nulägesanalys'!F25","v":""}]
[null,{"$f":"'1.2. Resultat av nulägesanalys'!B26","v":"Tillförlitliga och säkra processer – i samordning och informationsdelning mellan aktörer"},{"$f":"'1.2. Resultat av nulägesanalys'!C26","v":""},{"$f":"'1.2. Resultat av nulägesanalys'!D26","v":""},{"$f":"'1.2. Resultat av nulägesanalys'!E26","v":""},{"$f":"'1.2. Resultat av nulägesanalys'!F26","v":""}]
[null,{"$f":"'1.2. Resultat av nulägesanalys'!B27","v":"Förebyggande arbete för att minska risker för specifika vårdskador"},{"$f":"'1.2. Resultat av nulägesanalys'!C27","v":""},{"$f":"'1.2. Resultat av nulägesanalys'!D27","v":""},{"$f":"'1.2. Resultat av nulägesanalys'!E27","v":""},{"$f":"'1.2. Resultat av nulägesanalys'!F27","v":""}]
[null,{"$f":"'1.2. Resultat av nulägesanalys'!B28","v":"Verktyg, metoder och arbetssätt för ett patientsäkert arbete"},{"$f":"'1.2. Resultat av nulägesanalys'!C28","v":""},{"$f":"'1.2. Resultat av nulägesanalys'!D28","v":""},{"$f":"'1.2. Resultat av nulägesanalys'!E28","v":""},{"$f":"'1.2. Resultat av nulägesanalys'!F28","v":""}]
[null,{"$f":"'1.2. Resultat av nulägesanalys'!B29","v":"Medicinteknik, medicintekniska produkter, hjälpmedel och välfärdsteknik"},{"$f":"'1.2. Resultat av nulägesanalys'!C29","v":""},{"$f":"'1.2. Resultat av nulägesanalys'!D29","v":""},{"$f":"'1.2. Resultat av nulägesanalys'!E29","v":""},{"$f":"'1.2. Resultat av nulägesanalys'!F29","v":""}]
[null,{"$f":"'1.2. Resultat av nulägesanalys'!B30","v":"Ändamålsenliga vårdmiljöer"},{"$f":"'1.2. Resultat av nulägesanalys'!C30","v":""},{"$f":"'1.2. Resultat av nulägesanalys'!D30","v":""},{"$f":"'1.2. Resultat av nulägesanalys'!E30","v":""},{"$f":"'1.2. Resultat av nulägesanalys'!F30","v":""}]
[null,"\nFokusområde 3: Säker vård här och nu"]
[null,{"$f":"'1.2. Resultat av nulägesanalys'!B32","v":"Förmåga att förutse variationer och störningar i närtid"},{"$f":"'1.2. Resultat av nulägesanalys'!C32","v":""},{"$f":"'1.2. Resultat av nulägesanalys'!D32","v":""},{"$f":"'1.2. Resultat av nulägesanalys'!E32","v":""},{"$f":"'1.2. Resultat av nulägesanalys'!F32","v":""}]
[null,{"$f":"'1.2. Resultat av nulägesanalys'!B33","v":"Situationsanpassning"},{"$f":"'1.2. Resultat av nulägesanalys'!C33","v":""},{"$f":"'1.2. Resultat av nulägesanalys'!D33","v":""},{"$f":"'1.2. Resultat av nulägesanalys'!E33","v":""},{"$f":"'1.2. Resultat av nulägesanalys'!F33","v":""}]
[null,{"$f":"'1.2. Resultat av nulägesanalys'!B34","v":"Dagligt patientsäkerhetsarbete"},{"$f":"'1.2. Resultat av nulägesanalys'!C34","v":""},{"$f":"'1.2. Resultat av nulägesanalys'!D34","v":""},{"$f":"'1.2. Resultat av nulägesanalys'!E34","v":""},{"$f":"'1.2. Resultat av nulägesanalys'!F34","v":""}]
[null,{"$f":"'1.2. Resultat av nulägesanalys'!B35","v":"Säker arbetsmiljö"},{"$f":"'1.2. Resultat av nulägesanalys'!C35","v":""},{"$f":"'1.2. Resultat av nulägesanalys'!D35","v":""},{"$f":"'1.2. Resultat av nulägesanalys'!E35","v":""},{"$f":"'1.2. Resultat av nulägesanalys'!F35","v":""}]
[null,{"$f":"'1.2. Resultat av nulägesanalys'!B36","v":"Säker bemanning"},{"$f":"'1.2. Resultat av nulägesanalys'!C36","v":""},{"$f":"'1.2. Resultat av nulägesanalys'!D36","v":""},{"$f":"'1.2. Resultat av nulägesanalys'!E36","v":""},{"$f":"'1.2. Resultat av nulägesanalys'!F36","v":""}]
[null,{"$f":"'1.2. Resultat av nulägesanalys'!B37","v":"Granskning och kontroll av patientsäkerhet inom organisationen och hos andra vårdgivare"},{"$f":"'1.2. Resultat av nulägesanalys'!C37","v":""},{"$f":"'1.2. Resultat av nulägesanalys'!D37","v":""},{"$f":"'1.2. Resultat av nulägesanalys'!E37","v":""},{"$f":"'1.2. Resultat av nulägesanalys'!F37","v":""}]
[null,"\nFokusområde 4: Stärka analys, lärande och utveckling"]
[null,{"$f":"'1.2. Resultat av nulägesanalys'!B39","v":"Uppföljning av patientsäkerheten genom insamling och sammanställning av data från flera källor"},{"$f":"'1.2. Resultat av nulägesanalys'!C39","v":""},{"$f":"'1.2. Resultat av nulägesanalys'!D39","v":""},{"$f":"'1.2. Resultat av nulägesanalys'!E39","v":""},{"$f":"'1.2. Resultat av nulägesanalys'!F39","v":""}]
[null,{"$f":"'1.2. Resultat av nulägesanalys'!B40","v":"Analyser som möjliggör lärande"},{"$f":"'1.2. Resultat av nulägesanalys'!C40","v":""},{"$f":"'1.2. Resultat av nulägesanalys'!D40","v":""},{"$f":"'1.2. Resultat av nulägesanalys'!E40","v":""},{"$f":"'1.2. Resultat av nulägesanalys'!F40","v":""}]
[null,{"$f":"'1.2. Resultat av nulägesanalys'!B41","v":"Lärande från analyser och det egna arbetet"},{"$f":"'1.2. Resultat av nulägesanalys'!C41","v":""},{"$f":"'1.2. Resultat av nulägesanalys'!D41","v":""},{"$f":"'1.2. Resultat av nulägesanalys'!E41","v":""},{"$f":"'1.2. Resultat av nulägesanalys'!F41","v":""}]
[null,{"$f":"'1.2. Resultat av nulägesanalys'!B42","v":"Spridning av kunskap och lärdomar"},{"$f":"'1.2. Resultat av nulägesanalys'!C42","v":""},{"$f":"'1.2. Resultat av nulägesanalys'!D42","v":""},{"$f":"'1.2. Resultat av nulägesanalys'!E42","v":""},{"$f":"'1.2. Resultat av nulägesanalys'!F42","v":""}]
[null,"\nFokusområde 5: Öka riskmedvetenhet och beredskap"]
[null,{"$f":"'1.2. Resultat av nulägesanalys'!B44","v":"Beredskap och planering för hantering av risker på lång sikt"},{"$f":"'1.2. Resultat av nulägesanalys'!C44","v":""},{"$f":"'1.2. Resultat av nulägesanalys'!D44","v":""},{"$f":"'1.2. Resultat av nulägesanalys'!E44","v":""},{"$f":"'1.2. Resultat av nulägesanalys'!F44","v":""}]
[null,{"$f":"'1.2. Resultat av nulägesanalys'!B45","v":"Omvärldsbevakning ur ett patientsäkerhetsperspektiv"},{"$f":"'1.2. Resultat av nulägesanalys'!C45","v":""},{"$f":"'1.2. Resultat av nulägesanalys'!D45","v":""},{"$f":"'1.2. Resultat av nulägesanalys'!E45","v":""},{"$f":"'1.2. Resultat av nulägesanalys'!F45","v":""}]
[null,{"$f":"'1.2. Resultat av nulägesanalys'!B46","v":"Färdighetsträning och simulering för ökad beredskap"},{"$f":"'1.2. Resultat av nulägesanalys'!C46","v":""},{"$f":"'1.2. Resultat av nulägesanalys'!D46","v":""},{"$f":"'1.2. Resultat av nulägesanalys'!E46","v":""},{"$f":"'1.2. Resultat av nulägesanalys'!F46","v":""}]

{"sheet":"2.2. Möjliga insatser","index":4,"n_rows":67,"n_cols":34,"rows_kept":67,"cut":false,"hidden":false,"merged":[[1,1,1,3],[2,1,2,3],[3,1,3,3],[5,1,7,3],[10,9,16,9]]}
[]
[null,{"$f":"\"Handlingsalternativ, \"&'1.1. Nulägesanalys'!B3:E3&\"\"","v":"Handlingsalternativ, Välj region från listan (alternativt organisation)"},null,null,null,"Prioriterade teman","Prioriterade teman med minst en insats beskriven"]
[null,{"$f":"\"\"&'1.1. Nulägesanalys'!B5:E5&\"\"","v":""},null,null,"Grundläggande förutsättningar",{"$f":"COUNTIF(U11:U19,\">\"\"\")","v":0},{"$f":"COUNTIF(AH11:AH19,\">0\")","v":0},null,null,null,null,null,"Fokusområde 1: Öka kunskap om inträffade vårdskador"]
[null,{"$f":"\"\"&'1.1. Nulägesanalys'!B7:E7&\"\"","v":""},null,null,"Fokusområde 1",{"$f":"COUNTIF(V11:V19,\">\"\"\")","v":0},{"$f":"COUNTIF(AC11:AC19,\">0\")","v":0},null,null,null,null,null,"Fokusområde 2: Tillförlitliga och säkra system och processer "]
[null,null,null,null,"Fokusområde 2",{"$f":"COUNTIF(W11:W19,\">\"\"\")","v":0},{"$f":"COUNTIF(AD11:AD19,\">0\")","v":0},null,null,null,null,null,"Fokusområde 3: Säker vård här och nu"]
[null,"Kort instruktion: På denna sida beskriver ni insatser för era prioriterade teman och uppskattar resursåtgång och förväntad effekt\n1. Välj område i kolumnen nedan (OBS. enbart områden med teman som ni i föregående steg valt att prioritera går att välja)\n2. Välj det tema inom området som ni vill beskriva en insats för (enbart era prioriterade teman går att välja)\n3. Beskriv insatser och aktörer i de grå fritextfälten för ett tema i taget. Det går att välja samma tema flera gånger. \n4. När ni beskrivit insatser för samtliga prioriterade teman - bedöm resursåtgången av att genomföra respektive insats samt den förväntade effekten på patientsäkerheten, gå sedan vidare till sammanställningen \nLästips i genomförandestödet: s. 30",null,null,"Fokusområde 3",{"$f":"COUNTIF(X11:X19,\">\"\"\")","v":0},{"$f":"COUNTIF(AE11:AE19,\">0\")","v":0},null,null,null,null,null,"Fokusområde 4: Stärka analys, lärande och utveckling"]
[null,null,null,null,"Fokusområde 4",{"$f":"COUNTIF(Y11:Y19,\">\"\"\")","v":0},{"$f":"COUNTIF(AF11:AF19,\">0\")","v":0},null,null,null,null,null,"Fokusområde 5: Öka riskmedvetenhet och beredskap"]
[null,null,null,null,"Fokusområde 5",{"$f":"COUNTIF(Z11:Z19,\">\"\"\")","v":0},{"$f":"COUNTIF(AG11:AG19,\">0\")","v":0},null,null,null,null,null,"Grundläggande förutsättningar för patientsäkerhetsarbete",null,null,null,null,null,null,null,null,null,null,null,null,null,null,null,"Ifyllda"]
[null,null,null,null,null,null,null,null,null,null,null,null,"Antal fokusområden",null,{"$f":"COUNTIF($S$11:$S$24,\">\"\"\")","v":0},null,null,null,null,null,"Grundläggande förutsättningar för patientsäkerhetsarbete","Fokusområde 1: Öka kunskap om inträffade vårdskador","Fokusområde 2: Tillförlitliga och säkra system och processer ","Fokusområde 3: Säker vård här och nu","Fokusområde 4: Stärka analys, lärande och utveckling","Fokusområde 5: Öka riskmedvetenhet och beredskap",null,null,"Fokusområde 1: Öka kunskap om inträffade vårdskador","Fokusområde 2: Tillförlitliga och säkra system och processer ","Fokusområde 3: Säker vård här och nu","Fokusområde 4: Stärka analys, lärande och utveckling","Fokusområde 5: Öka riskmedvetenhet och beredskap","Grundläggande förutsättningar för patientsäkerhetsarbete"]
[null,"Välj område","Välj tema","Beskriv insatser för att möta de identifierade utmaningarna","Beskriv vilken/vilka aktörer som bör agera","Uppskattad resursåtgång","Förväntad effekt","Prio-värde",null,null,null,null,"Aktuell lista","Listkolumn","Aktuell listlängd",null,null,null,"Fokusområden","Aktuell lista",1,2,3,4,5,6,null,null,2,3,4,5,6,1]
[null,null,null,null,null,null,null,{"$f":"IFERROR(VLOOKUP(F11,Variabler!$C$33:$D$35,2,FALSE)+VLOOKUP(G11,Variabler!$E$33:$F$36,2,FALSE),\"\")","v":""},null,"Notera att det är viktigt att skriva första insatsen i rad 11, nästa i rad 12, osv. Lämnar ni tomma rader följer insatser under de tomma raderna inte med till sammanställningen i nästa flik.",null,null,{"$f":"HLOOKUP(B11,$U$9:$Z$10,2,FALSE)","v":{"$error":"#N/A"}},{"$f":"M11-1","v":{"$error":"#N/A"}},{"$f":"COUNTIF(OFFSET($U$11:$U$25,0,N11),\">\"\"\")","v":{"$error":"#N/A"}},null,null,null,{"$f":"'steg 2 - data'!B5","v":""},null,{"$f":"'steg 2 - data'!E5","v":""},{"$f":"'steg 2 - data'!G5","v":""},{"$f":"'steg 2 - data'!I5","v":""},{"$f":"'steg 2 - data'!K5","v":""},{"$f":"'steg 2 - data'!M5","v":""},{"$f":"'steg 2 - data'!O5","v":""},null,null,{"$f":"COUNTIFS($C$11:$C$67,\"=\"&V11,$C$11:$C$67,\">\"\"\")","v":0},{"$f":"COUNTIFS($C$11:$C$67,\"=\"&W11,$C$11:$C$67,\">\"\"\")","v":0},0,0,0,{"$f":"COUNTIFS($C$11:$C$67,\"=\"&U11,$C$11:$C$67,\">\"\"\")","v":0}]
[null,null,null,null,null,null,null,{"$f":"IFERROR(VLOOKUP(F12,Variabler!$C$33:$D$35,2,FALSE)+VLOOKUP(G12,Variabler!$E$33:$F$36,2,FALSE),\"\")","v":""},null,null,null,null,{"$f":"HLOOKUP(B12,$U$9:$Z$10,2,FALSE)","v":{"$error":"#N/A"}},{"$f":"M12-1","v":{"$error":"#N/A"}},{"$f":"COUNTIF(OFFSET($U$11:$U$25,0,N12),\">\"\"\")","v":{"$error":"#N/A"}},null,null,null,{"$f":"'steg 2 - data'!B6","v":""},null,{"$f":"'steg 2 - data'!E6","v":""},{"$f":"'steg 2 - data'!G6","v":""},{"$f":"'steg 2 - data'!I6","v":""},{"$f":"'steg 2 - data'!K6","v":""},{"$f":"'steg 2 - data'!M6","v":""},{"$f":"'steg 2 - data'!O6","v":""},null,null,{"$f":"COUNTIFS($C$11:$C$67,\"=\"&V12,$C$11:$C$67,\">\"\"\")","v":0},0,0,0,0,0]
[null,null,null,null,null,null,null,{"$f":"IFERROR(VLOOKUP(F13,Variabler!$C$33:$D$35,2,FALSE)+VLOOKUP(G13,Variabler!$E$33:$F$36,2,FALSE),\"\")","v":""},null,null,null,null,{"$error":"#N/A"},{"$error":"#N/A"},{"$f":"COUNTIF(OFFSET($U$11:$U$25,0,N13),\">\"\"\")","v":{"$error":"#N/A"}},null,null,null,{"$f":"'steg 2 - data'!B7","v":""},null,{"$f":"'steg 2 - data'!E7","v":""},{"$f":"'steg 2 - data'!G7","v":""},{"$f":"'steg 2 - data'!I7","v":""},{"$f":"'steg 2 - data'!K7","v":""},{"$f":"'steg 2 - data'!M7","v":""},{"$f":"'steg 2 - data'!O7","v":""},null,null,0,0,0,0,0,0]
[null,null,null,null,null,null,null,{"$f":"IFERROR(VLOOKUP(F14,Variabler!$C$33:$D$35,2,FALSE)+VLOOKUP(G14,Variabler!$E$33:$F$36,2,FALSE),\"\")","v":""},null,null,null,null,{"$error":"#N/A"},{"$error":"#N/A"},{"$f":"COUNTIF(OFFSET($U$11:$U$25,0,N14),\">\"\"\")","v":{"$error":"#N/A"}},null,null,null,{"$f":"'steg 2 - data'!B8","v":""},null,{"$f":"'steg 2 - data'!E8","v":""},{"$f":"'steg 2 - data'!G8","v":""},{"$f":"'steg 2 - data'!I8","v":""},{"$f":"'steg 2 - data'!K8","v":""},{"$f":"'steg 2 - data'!M8","v":""},{"$f":"'steg 2 - data'!O8","v":""},null,null,0,0,0,0,0,0]
[null,null,null,null,null,null,null,{"$f":"IFERROR(VLOOKUP(F15,Variabler!$C$33:$D$35,2,FALSE)+VLOOKUP(G15,Variabler!$E$33:$F$36,2,FALSE),\"\")","v":""},null,null,null,null,{"$error":"#N/A"},{"$error":"#N/A"},{"$error":"#N/A"},null,null,null,{"$f":"'steg 2 - data'!B9","v":""},null,{"$f":"'steg 2 - data'!E9","v":""},{"$f":"'steg 2 - data'!G9","v":""},{"$f":"'steg 2 - data'!I9","v":""},{"$f":"'steg 2 - data'!K9","v":""},{"$f":"'steg 2 - data'!M9","v":""},{"$f":"'steg 2 - data'!O9","v":""},null,null,0,0,0,0,0,0]
[null,null,null,null,null,null,null,{"$f":"IFERROR(VLOOKUP(F16,Variabler!$C$33:$D$35,2,FALSE)+VLOOKUP(G16,Variabler!$E$33:$F$36,2,FALSE),\"\")","v":""},null,null,null,null,{"$error":"#N/A"},{"$error":"#N/A"},{"$error":"#N/A"},null,null,null,{"$f":"'steg 2 - data'!B10","v":""},null,{"$f":"'steg 2 - data'!E10","v":""},{"$f":"'steg 2 - data'!G10","v":""},{"$f":"'steg 2 - data'!I10","v":""},{"$f":"'steg 2 - data'!K10","v":""},{"$f":"'steg 2 - data'!M10","v":""},{"$f":"'steg 2 - data'!O10","v":""},null,null,0,0,0,0,0,0]
[null,null,null,null,null,null,null,{"$f":"IFERROR(VLOOKUP(F17,Variabler!$C$33:$D$35,2,FALSE)+VLOOKUP(G17,Variabler!$E$33:$F$36,2,FALSE),\"\")","v":""},null,null,null,null,{"$error":"#N/A"},{"$error":"#N/A"},{"$error":"#N/A"},null,null,null,null,null,{"$f":"'steg 2 - data'!E11","v":""},{"$f":"'steg 2 - data'!G11","v":""},{"$f":"'steg 2 - data'!I11","v":""},{"$f":"'steg 2 - data'!K11","v":""},{"$f":"'steg 2 - data'!M11","v":""},{"$f":"'steg 2 - data'!O11","v":""},null,null,0,0,0,0,0,0]
[null,null,null,null,null,null,null,{"$f":"IFERROR(VLOOKUP(F18,Variabler!$C$33:$D$35,2,FALSE)+VLOOKUP(G18,Variabler!$E$33:$F$36,2,FALSE),\"\")","v":""},null,null,null,null,{"$error":"#N/A"},{"$error":"#N/A"},{"$error":"#N/A"},null,null,null,null,null,{"$f":"'steg 2 - data'!E12","v":""},{"$f":"'steg 2 - data'!G12","v":""},{"$f":"'steg 2 - data'!I12","v":""},{"$f":"'steg 2 - data'!K12","v":""},{"$f":"'steg 2 - data'!M12","v":""},{"$f":"'steg 2 - data'!O12","v":""},null,null,0,0,0,0,0,0]
[null,null,null,null,null,null,null,{"$f":"IFERROR(VLOOKUP(F19,Variabler!$C$33:$D$35,2,FALSE)+VLOOKUP(G19,Variabler!$E$33:$F$36,2,FALSE),\"\")","v":""},null,null,null,null,{"$error":"#N/A"},{"$error":"#N/A"},{"$error":"#N/A"},null,null,null,null,null,{"$f":"'steg 2 - data'!E13","v":""},{"$f":"'steg 2 - data'!G13","v":""},{"$f":"'steg 2 - data'!I13","v":""},{"$f":"'steg 2 - data'!K13","v":""},{"$f":"'steg 2 - data'!M13","v":""},{"$f":"'steg 2 - data'!O13","v":""},null,null,0,0,0,0,0,0]
[null,null,null,null,null,null,null,{"$f":"IFERROR(VLOOKUP(F20,Variabler!$C$33:$D$35,2,FALSE)+VLOOKUP(G20,Variabler!$E$33:$F$36,2,FALSE),\"\")","v":""},null,null,null,null,{"$error":"#N/A"},{"$error":"#N/A"},{"$error":"#N/A"},null,null,null,null,null,null,{"$f":"'steg 2 - data'!E14","v":""}]
[null,null,null,null,null,null,null,{"$f":"IFERROR(VLOOKUP(F21,Variabler!$C$33:$D$35,2,FALSE)+VLOOKUP(G21,Variabler!$E$33:$F$36,2,FALSE),\"\")","v":""},null,null,null,null,{"$error":"#N/A"},{"$error":"#N/A"},{"$error":"#N/A"},null,null,null,null,null,null,{"$f":"'steg 2 - data'!E15","v":""}]
[null,null,null,null,null,null,null,{"$f":"IFERROR(VLOOKUP(F22,Variabler!$C$33:$D$35,2,FALSE)+VLOOKUP(G22,Variabler!$E$33:$F$36,2,FALSE),\"\")","v":""},null,null,null,null,{"$error":"#N/A"},{"$error":"#N/A"},{"$error":"#N/A"}]
[null,null,null,null,null,null,null,{"$f":"IFERROR(VLOOKUP(F23,Variabler!$C$33:$D$35,2,FALSE)+VLOOKUP(G23,Variabler!$E$33:$F$36,2,FALSE),\"\")","v":""},null,null,null,null,{"$error":"#N/A"},{"$error":"#N/A"},{"$error":"#N/A"}]
[null,null,null,null,null,null,null,{"$f":"IFERROR(VLOOKUP(F24,Variabler!$C$33:$D$35,2,FALSE)+VLOOKUP(G24,Variabler!$E$33:$F$36,2,FALSE),\"\")","v":""},null,null,null,null,{"$error":"#N/A"},{"$error":"#N/A"},{"$error":"#N/A"}]
[null,null,null,null,null,null,null,{"$f":"IFERROR(VLOOKUP(F25,Variabler!$C$33:$D$35,2,FALSE)+VLOOKUP(G25,Variabler!$E$33:$F$36,2,FALSE),\"\")","v":""},null,null,null,null,{"$error":"#N/A"},{"$error":"#N/A"},{"$error":"#N/A"}]
[null,null,null,null,null,null,null,{"$f":"IFERROR(VLOOKUP(F26,Variabler!$C$33:$D$35,2,FALSE)+VLOOKUP(G26,Variabler!$E$33:$F$36,2,FALSE),\"\")","v":""},null,null,null,null,{"$error":"#N/A"},{"$error":"#N/A"},{"$error":"#N/A"}]
[null,null,null,null,null,null,null,{"$f":"IFERROR(VLOOKUP(F27,Variabler!$C$33:$D$35,2,FALSE)+VLOOKUP(G27,Variabler!$E$33:$F$36,2,FALSE),\"\")","v":""},null,null,null,null,{"$error":"#N/A"},{"$error":"#N/A"},{"$error":"#N/A"}]
[null,null,null,null,null,null,null,{"$f":"IFERROR(VLOOKUP(F28,Variabler!$C$33:$D$35,2,FALSE)+VLOOKUP(G28,Variabler!$E$33:$F$36,2,FALSE),\"\")","v":""},null,null,null,null,{"$error":"#N/A"},{"$error":"#N/A"},{"$error":"#N/A"}]
[null,null,null,null,null,null,null,{"$f":"IFERROR(VLOOKUP(F29,Variabler!$C$33:$D$35,2,FALSE)+VLOOKUP(G29,Variabler!$E$33:$F$36,2,FALSE),\"\")","v":""},null,null,null,null,{"$error":"#N/A"},{"$error":"#N/A"},{"$error":"#N/A"}]
[null,null,null,null,null,null,null,{"$f":"IFERROR(VLOOKUP(F30,Variabler!$C$33:$D$35,2,FALSE)+VLOOKUP(G30,Variabler!$E$33:$F$36,2,FALSE),\"\")","v":""},null,null,null,null,{"$error":"#N/A"},{"$error":"#N/A"},{"$error":"#N/A"}]
[null,null,null,null,null,null,null,{"$f":"IFERROR(VLOOKUP(F31,Variabler!$C$33:$D$35,2,FALSE)+VLOOKUP(G31,Variabler!$E$33:$F$36,2,FALSE),\"\")","v":""},null,null,null,null,{"$error":"#N/A"},{"$error":"#N/A"},{"$error":"#N/A"}]
[null,null,null,null,null,null,null,{"$f":"IFERROR(VLOOKUP(F32,Variabler!$C$33:$D$35,2,FALSE)+VLOOKUP(G32,Variabler!$E$33:$F$36,2,FALSE),\"\")","v":""},null,null,null,null,{"$error":"#N/A"},{"$error":"#N/A"},{"$error":"#N/A"}]
[null,null,null,null,null,null,null,{"$f":"IFERROR(VLOOKUP(F33,Variabler!$C$33:$D$35,2,FALSE)+VLOOKUP(G33,Variabler!$E$33:$F$36,2,FALSE),\"\")","v":""},null,null,null,null,{"$error":"#N/A"},{"$error":"#N/A"},{"$error":"#N/A"}]
[null,null,null,null,null,null,null,{"$f":"IFERROR(VLOOKUP(F34,Variabler!$C$33:$D$35,2,FALSE)+VLOOKUP(G34,Variabler!$E$33:$F$36,2,FALSE),\"\")","v":""},null,null,null,null,{"$error":"#N/A"},{"$error":"#N/A"},{"$error":"#N/A"}]
[null,null,null,null,null,null,null,{"$f":"IFERROR(VLOOKUP(F35,Variabler!$C$33:$D$35,2,FALSE)+VLOOKUP(G35,Variabler!$E$33:$F$36,2,FALSE),\"\")","v":""},null,null,null,null,{"$error":"#N/A"},{"$error":"#N/A"},{"$error":"#N/A"}]
[null,null,null,null,null,null,null,{"$f":"IFERROR(VLOOKUP(F36,Variabler!$C$33:$D$35,2,FALSE)+VLOOKUP(G36,Variabler!$E$33:$F$36,2,FALSE),\"\")","v":""},null,null,null,null,{"$error":"#N/A"},{"$error":"#N/A"},{"$error":"#N/A"}]
[null,null,null,null,null,null,null,{"$f":"IFERROR(VLOOKUP(F37,Variabler!$C$33:$D$35,2,FALSE)+VLOOKUP(G37,Variabler!$E$33:$F$36,2,FALSE),\"\")","v":""},null,null,null,null,{"$error":"#N/A"},{"$error":"#N/A"},{"$error":"#N/A"}]
[null,null,null,null,null,null,null,{"$f":"IFERROR(VLOOKUP(F38,Variabler!$C$33:$D$35,2,FALSE)+VLOOKUP(G38,Variabler!$E$33:$F$36,2,FALSE),\"\")","v":""},null,null,null,null,{"$error":"#N/A"},{"$error":"#N/A"},{"$error":"#N/A"}]
[null,null,null,null,null,null,null,{"$f":"IFERROR(VLOOKUP(F39,Variabler!$C$33:$D$35,2,FALSE)+VLOOKUP(G39,Variabler!$E$33:$F$36,2,FALSE),\"\")","v":""},null,null,null,null,{"$error":"#N/A"},{"$error":"#N/A"},{"$error":"#N/A"}]
[null,null,null,null,null,null,null,{"$f":"IFERROR(VLOOKUP(F40,Variabler!$C$33:$D$35,2,FALSE)+VLOOKUP(G40,Variabler!$E$33:$F$36,2,FALSE),\"\")","v":""},null,null,null,null,{"$error":"#N/A"},{"$error":"#N/A"},{"$error":"#N/A"}]
[null,null,null,null,null,null,null,{"$f":"IFERROR(VLOOKUP(F41,Variabler!$C$33:$D$35,2,FALSE)+VLOOKUP(G41,Variabler!$E$33:$F$36,2,FALSE),\"\")","v":""},null,null,null,null,{"$error":"#N/A"},{"$error":"#N/A"},{"$error":"#N/A"}]
[null,null,null,null,null,null,null,{"$f":"IFERROR(VLOOKUP(F42,Variabler!$C$33:$D$35,2,FALSE)+VLOOKUP(G42,Variabler!$E$33:$F$36,2,FALSE),\"\")","v":""},null,null,null,null,{"$error":"#N/A"},{"$error":"#N/A"},{"$error":"#N/A"}]
[null,null,null,null,null,null,null,{"$f":"IFERROR(VLOOKUP(F43,Variabler!$C$33:$D$35,2,FALSE)+VLOOKUP(G43,Variabler!$E$33:$F$36,2,FALSE),\"\")","v":""},null,null,null,null,{"$error":"#N/A"},{"$error":"#N/A"},{"$error":"#N/A"}]
[null,null,null,null,null,null,null,{"$f":"IFERROR(VLOOKUP(F44,Variabler!$C$33:$D$35,2,FALSE)+VLOOKUP(G44,Variabler!$E$33:$F$36,2,FALSE),\"\")","v":""},null,null,null,null,{"$error":"#N/A"},{"$error":"#N/A"},{"$error":"#N/A"}]
[null,null,null,null,null,null,null,{"$f":"IFERROR(VLOOKUP(F45,Variabler!$C$33:$D$35,2,FALSE)+VLOOKUP(G45,Variabler!$E$33:$F$36,2,FALSE),\"\")","v":""},null,null,null,null,{"$error":"#N/A"},{"$error":"#N/A"},{"$error":"#N/A"}]
[null,null,null,null,null,null,null,{"$f":"IFERROR(VLOOKUP(F46,Variabler!$C$33:$D$35,2,FALSE)+VLOOKUP(G46,Variabler!$E$33:$F$36,2,FALSE),\"\")","v":""},null,null,null,null,{"$error":"#N/A"},{"$error":"#N/A"},{"$error":"#N/A"}]
[null,null,null,null,null,null,null,{"$f":"IFERROR(VLOOKUP(F47,Variabler!$C$33:$D$35,2,FALSE)+VLOOKUP(G47,Variabler!$E$33:$F$36,2,FALSE),\"\")","v":""},null,null,null,null,{"$error":"#N/A"},{"$error":"#N/A"},{"$error":"#N/A"}]
[null,null,null,null,null,null,null,{"$f":"IFERROR(VLOOKUP(F48,Variabler!$C$33:$D$35,2,FALSE)+VLOOKUP(G48,Variabler!$E$33:$F$36,2,FALSE),\"\")","v":""},null,null,null,null,{"$error":"#N/A"},{"$error":"#N/A"},{"$error":"#N/A"}]
[null,null,null,null,null,null,null,{"$f":"IFERROR(VLOOKUP(F49,Variabler!$C$33:$D$35,2,FALSE)+VLOOKUP(G49,Variabler!$E$33:$F$36,2,FALSE),\"\")","v":""},null,null,null,null,{"$error":"#N/A"},{"$error":"#N/A"},{"$error":"#N/A"}]
[null,null,null,null,null,null,null,{"$f":"IFERROR(VLOOKUP(F50,Variabler!$C$33:$D$35,2,FALSE)+VLOOKUP(G50,Variabler!$E$33:$F$36,2,FALSE),\"\")","v":""},null,null,null,null,{"$error":"#N/A"},{"$error":"#N/A"},{"$error":"#N/A"}]
[null,null,null,null,null,null,null,{"$f":"IFERROR(VLOOKUP(F51,Variabler!$C$33:$D$35,2,FALSE)+VLOOKUP(G51,Variabler!$E$33:$F$36,2,FALSE),\"\")","v":""},null,null,null,null,{"$error":"#N/A"},{"$error":"#N/A"},{"$error":"#N/A"}]
[null,null,null,null,null,null,null,{"$f":"IFERROR(VLOOKUP(F52,Variabler!$C$33:$D$35,2,FALSE)+VLOOKUP(G52,Variabler!$E$33:$F$36,2,FALSE),\"\")","v":""},null,null,null,null,{"$error":"#N/A"},{"$error":"#N/A"},{"$error":"#N/A"}]
[null,null,null,null,null,null,null,{"$f":"IFERROR(VLOOKUP(F53,Variabler!$C$33:$D$35,2,FALSE)+VLOOKUP(G53,Variabler!$E$33:$F$36,2,FALSE),\"\")","v":""},null,null,null,null,{"$error":"#N/A"},{"$error":"#N/A"},{"$error":"#N/A"}]
[null,null,null,null,null,null,null,{"$f":"IFERROR(VLOOKUP(F54,Variabler!$C$33:$D$35,2,FALSE)+VLOOKUP(G54,Variabler!$E$33:$F$36,2,FALSE),\"\")","v":""},null,null,null,null,{"$error":"#N/A"},{"$error":"#N/A"},{"$error":"#N/A"}]
[null,null,null,null,null,null,null,{"$f":"IFERROR(VLOOKUP(F55,Variabler!$C$33:$D$35,2,FALSE)+VLOOKUP(G55,Variabler!$E$33:$F$36,2,FALSE),\"\")","v":""},null,null,null,null,{"$error":"#N/A"},{"$error":"#N/A"},{"$error":"#N/A"}]
[null,null,null,null,null,null,null,{"$f":"IFERROR(VLOOKUP(F56,Variabler!$C$33:$D$35,2,FALSE)+VLOOKUP(G56,Variabler!$E$33:$F$36,2,FALSE),\"\")","v":""},null,null,null,null,{"$error":"#N/A"},{"$error":"#N/A"},{"$error":"#N/A"}]
[null,null,null,null,null,null,null,{"$f":"IFERROR(VLOOKUP(F57,Variabler!$C$33:$D$35,2,FALSE)+VLOOKUP(G57,Variabler!$E$33:$F$36,2,FALSE),\"\")","v":""},null,null,null,null,{"$error":"#N/A"},{"$error":"#N/A"},{"$error":"#N/A"}]
[null,null,null,null,null,null,null,{"$f":"IFERROR(VLOOKUP(F58,Variabler!$C$33:$D$35,2,FALSE)+VLOOKUP(G58,Variabler!$E$33:$F$36,2,FALSE),\"\")","v":""},null,null,null,null,{"$error":"#N/A"},{"$error":"#N/A"},{"$error":"#N/A"}]
[null,null,null,null,null,null,null,{"$f":"IFERROR(VLOOKUP(F59,Variabler!$C$33:$D$35,2,FALSE)+VLOOKUP(G59,Variabler!$E$33:$F$36,2,FALSE),\"\")","v":""},null,null,null,null,{"$error":"#N/A"},{"$error":"#N/A"},{"$error":"#N/A"}]
[null,null,null,null,null,null,null,{"$f":"IFERROR(VLOOKUP(F60,Variabler!$C$33:$D$35,2,FALSE)+VLOOKUP(G60,Variabler!$E$33:$F$36,2,FALSE),\"\")","v":""},null,null,null,null,{"$error":"#N/A"},{"$error":"#N/A"},{"$error":"#N/A"}]
[null,null,null,null,null,null,null,{"$f":"IFERROR(VLOOKUP(F61,Variabler!$C$33:$D$35,2,FALSE)+VLOOKUP(G61,Variabler!$E$33:$F$36,2,FALSE),\"\")","v":""},null,null,null,null,{"$error":"#N/A"},{"$error":"#N/A"},{"$error":"#N/A"}]
[null,null,null,null,null,null,null,{"$f":"IFERROR(VLOOKUP(F62,Variabler!$C$33:$D$35,2,FALSE)+VLOOKUP(G62,Variabler!$E$33:$F$36,2,FALSE),\"\")","v":""},null,null,null,null,{"$error":"#N/A"},{"$error":"#N/A"},{"$error":"#N/A"}]
[null,null,null,null,null,null,null,{"$f":"IFERROR(VLOOKUP(F63,Variabler!$C$33:$D$35,2,FALSE)+VLOOKUP(G63,Variabler!$E$33:$F$36,2,FALSE),\"\")","v":""},null,null,null,null,{"$error":"#N/A"},{"$error":"#N/A"},{"$error":"#N/A"}]
[null,null,null,null,null,null,null,{"$f":"IFERROR(VLOOKUP(F64,Variabler!$C$33:$D$35,2,FALSE)+VLOOKUP(G64,Variabler!$E$33:$F$36,2,FALSE),\"\")","v":""},null,null,null,null,{"$error":"#N/A"},{"$error":"#N/A"},{"$error":"#N/A"}]
[null,null,null,null,null,null,null,{"$f":"IFERROR(VLOOKUP(F65,Variabler!$C$33:$D$35,2,FALSE)+VLOOKUP(G65,Variabler!$E$33:$F$36,2,FALSE),\"\")","v":""},null,null,null,null,{"$error":"#N/A"},{"$error":"#N/A"},{"$error":"#N/A"}]
[null,null,null,null,null,null,null,{"$f":"IFERROR(VLOOKUP(F66,Variabler!$C$33:$D$35,2,FALSE)+VLOOKUP(G66,Variabler!$E$33:$F$36,2,FALSE),\"\")","v":""},null,null,null,null,{"$error":"#N/A"},{"$error":"#N/A"},{"$error":"#N/A"}]
[null,null,null,null,null,null,null,{"$f":"IFERROR(VLOOKUP(F67,Variabler!$C$33:$D$35,2,FALSE)+VLOOKUP(G67,Variabler!$E$33:$F$36,2,FALSE),\"\")","v":""},null,null,null,null,{"$error":"#N/A"},{"$error":"#N/A"},{"$error":"#N/A"}]

{"sheet":"2.3. Sammanställning","index":5,"n_rows":6,"n_cols":10,"rows_kept":6,"cut":false,"hidden":false,"merged":[[1,1,1,7],[2,1,2,7],[3,1,3,7],[5,9,18,12]]}
[]
[null,{"$f":"\"Prioritering av utmaningar, \"&'1.1. Nulägesanalys'!B3:E3&\"\"","v":"Prioritering av utmaningar, Välj region från listan (alternativt organisation)"}]
[null,{"$f":"\"\"&'1.1. Nulägesanalys'!B5:E5&\"\"","v":""}]
[null,{"$f":"\"\"&'1.1. Nulägesanalys'!B7:E7&\"\"","v":""}]
[null,"Område"]
[null,"Område","Tema","Insats","Aktör","Uppskattad resursåtgång","Förväntad effekt","Prio-värde",null,"Information: På denna sida genereras en sammanställning över de insatser ni beskrivit i föregående steg. Använd pilknapparna för att filtrera ut insatser, ex. inom ett visst tema eller för att sortera om insatserna, ex. utifrån lägst resursåtgång/störst effekt. Om viss text är dold, bredda raderna genom att i vänstermarginalen dubbelklicka på strecket mellan raderna.\n\nOBS! Om ni vill ändra formuleringen av insatser/aktör eller bedömning av priovärde, gör uppdateringarna på föregående sida (flik 2.2). Denna sida bör endast användas för att filtrera och sortera i resultatet.\n\nLästips i genomförandestödet: s. 35"]

{"sheet":"steg 2 - data","index":6,"n_rows":54,"n_cols":15,"rows_kept":54,"cut":false,"hidden":true,"merged":[]}
[]
["Antal val",{"$f":"COUNTIF(B5:B19,\">\"\"\")","v":0},null,null,{"$f":"COUNTIF(E5:E19,\">\"\"\")","v":0},null,{"$f":"COUNTIF(G5:G19,\">\"\"\")","v":0},null,{"$f":"COUNTIF(I5:I19,\">\"\"\")","v":0},null,{"$f":"COUNTIF(K5:K19,\">\"\"\")","v":0},null,{"$f":"COUNTIF(M5:M19,\">\"\"\")","v":0},null,{"$f":"COUNTIF(O5:O19,\">\"\"\")","v":0}]
[null,null,null,null,"Grundläggande förutsättningar för patientsäkerhetsarbete",null,"Fokusområde 1: Öka kunskap om inträffade vårdskador",null,"Fokusområde 2: Tillförlitliga och säkra system och processer ",null,"Fokusområde 3: Säker vård här och nu",null,"Fokusområde 4: Stärka analys, lärande och utveckling",null,"Fokusområde 5: Öka riskmedvetenhet och beredskap"]
[null,"Fokusområden","Aktuell lista",null,1,null,2,null,3,null,4,null,5,null,6]
[null,{"$f":"IFERROR(INDEX(B$22:B$33,MATCH(ROW()-ROW($Q$4),A$22:A$33,0)),\"\")","v":""},null,null,{"$f":"IFERROR(INDEX(E$22:E$33,MATCH(ROW()-ROW($Q$4),D$22:D$33,0)),\"\")","v":""},null,{"$f":"IFERROR(INDEX(G$22:G$33,MATCH(ROW()-ROW($Q$4),F$22:F$33,0)),\"\")","v":""},null,{"$f":"IFERROR(INDEX(I$22:I$33,MATCH(ROW()-ROW($Q$4),H$22:H$33,0)),\"\")","v":""},null,{"$f":"IFERROR(INDEX(K$22:K$33,MATCH(ROW()-ROW($Q$4),J$22:J$33,0)),\"\")","v":""},null,{"$f":"IFERROR(INDEX(M$22:M$33,MATCH(ROW()-ROW($Q$4),L$22:L$33,0)),\"\")","v":""},null,{"$f":"IFERROR(INDEX(O$22:O$33,MATCH(ROW()-ROW($Q$4),N$22:N$33,0)),\"\")","v":""}]
[null,{"$f":"IFERROR(INDEX(B$22:B$33,MATCH(ROW()-ROW($Q$4),A$22:A$33,0)),\"\")","v":""},null,null,{"$f":"IFERROR(INDEX(E$22:E$33,MATCH(ROW()-ROW($Q$4),D$22:D$33,0)),\"\")","v":""},null,{"$f":"IFERROR(INDEX(G$22:G$33,MATCH(ROW()-ROW($Q$4),F$22:F$33,0)),\"\")","v":""},null,{"$f":"IFERROR(INDEX(I$22:I$33,MATCH(ROW()-ROW($Q$4),H$22:H$33,0)),\"\")","v":""},null,"",null,{"$f":"IFERROR(INDEX(M$22:M$33,MATCH(ROW()-ROW($Q$4),L$22:L$33,0)),\"\")","v":""},null,{"$f":"IFERROR(INDEX(O$22:O$33,MATCH(ROW()-ROW($Q$4),N$22:N$33,0)),\"\")","v":""}]
[null,"",null,null,"",null,"",null,"",null,"",null,{"$f":"IFERROR(INDEX(M$22:M$33,MATCH(ROW()-ROW($Q$4),L$22:L$33,0)),\"\")","v":""},null,{"$f":"IFERROR(INDEX(O$22:O$33,MATCH(ROW()-ROW($Q$4),N$22:N$33,0)),\"\")","v":""}]
[null,"",null,null,"",null,"",null,"",null,"",null,{"$f":"IFERROR(INDEX(M$22:M$33,MATCH(ROW()-ROW($Q$4),L$22:L$33,0)),\"\")","v":""},null,{"$f":"IFERROR(INDEX(O$22:O$33,MATCH(ROW()-ROW($Q$4),N$22:N$33,0)),\"\")","v":""}]
[null,"",null,null,"",null,"",null,"",null,"",null,{"$f":"IFERROR(INDEX(M$22:M$33,MATCH(ROW()-ROW($Q$4),L$22:L$33,0)),\"\")","v":""},null,{"$f":"IFERROR(INDEX(O$22:O$33,MATCH(ROW()-ROW($Q$4),N$22:N$33,0)),\"\")","v":""}]
[null,"",null,null,"",null,"",null,"",null,"",null,{"$f":"IFERROR(INDEX(M$22:M$33,MATCH(ROW()-ROW($Q$4),L$22:L$33,0)),\"\")","v":""},null,{"$f":"IFERROR(INDEX(O$22:O$33,MATCH(ROW()-ROW($Q$4),N$22:N$33,0)),\"\")","v":""}]
[null,"",null,null,"",null,"",null,"",null,"",null,{"$f":"IFERROR(INDEX(M$22:M$33,MATCH(ROW()-ROW($Q$4),L$22:L$33,0)),\"\")","v":""},null,{"$f":"IFERROR(INDEX(O$22:O$33,MATCH(ROW()-ROW($Q$4),N$22:N$33,0)),\"\")","v":""}]
[null,"",null,null,"",null,"",null,"",null,"",null,{"$f":"IFERROR(INDEX(M$22:M$33,MATCH(ROW()-ROW($Q$4),L$22:L$33,0)),\"\")","v":""},null,{"$f":"IFERROR(INDEX(O$22:O$33,MATCH(ROW()-ROW($Q$4),N$22:N$33,0)),\"\")","v":""}]
[null,"",null,null,"",null,"",null,"",null,"",null,{"$f":"IFERROR(INDEX(M$22:M$33,MATCH(ROW()-ROW($Q$4),L$22:L$33,0)),\"\")","v":""},null,{"$f":"IFERROR(INDEX(O$22:O$33,MATCH(ROW()-ROW($Q$4),N$22:N$33,0)),\"\")","v":""}]
[null,"",null,null,"",null,"",null,"",null,"",null,{"$f":"IFERROR(INDEX(M$22:M$33,MATCH(ROW()-ROW($Q$4),L$22:L$33,0)),\"\")","v":""},null,{"$f":"IFERROR(INDEX(O$22:O$33,MATCH(ROW()-ROW($Q$4),N$22:N$33,0)),\"\")","v":""}]
[null,"",null,null,"",null,"",null,"",null,"",null,{"$f":"IFERROR(INDEX(M$22:M$33,MATCH(ROW()-ROW($Q$4),L$22:L$33,0)),\"\")","v":""},null,{"$f":"IFERROR(INDEX(O$22:O$33,MATCH(ROW()-ROW($Q$4),N$22:N$33,0)),\"\")","v":""}]
[null,"",null,null,"",null,"",null,"",null,"",null,{"$f":"IFERROR(INDEX(M$22:M$33,MATCH(ROW()-ROW($Q$4),L$22:L$33,0)),\"\")","v":""},null,{"$f":"IFERROR(INDEX(O$22:O$33,MATCH(ROW()-ROW($Q$4),N$22:N$33,0)),\"\")","v":""}]
[null,"",null,null,"",null,"",null,"",null,"",null,{"$f":"IFERROR(INDEX(M$22:M$33,MATCH(ROW()-ROW($Q$4),L$22:L$33,0)),\"\")","v":""},null,{"$f":"IFERROR(INDEX(O$22:O$33,MATCH(ROW()-ROW($Q$4),N$22:N$33,0)),\"\")","v":""}]
[null,"",null,null,"",null,"",null,"",null,"",null,{"$f":"IFERROR(INDEX(M$22:M$33,MATCH(ROW()-ROW($Q$4),L$22:L$33,0)),\"\")","v":""},null,{"$f":"IFERROR(INDEX(O$22:O$33,MATCH(ROW()-ROW($Q$4),N$22:N$33,0)),\"\")","v":""}]
[null,"",null,null,"",null,"",null,"",null,"",null,{"$f":"IFERROR(INDEX(M$22:M$33,MATCH(ROW()-ROW($Q$4),L$22:L$33,0)),\"\")","v":""},null,{"$f":"IFERROR(INDEX(O$22:O$33,MATCH(ROW()-ROW($Q$4),N$22:N$33,0)),\"\")","v":""}]
[null,null,null,null,"Grundläggande förutsättningar för patientsäkerhetsarbete",null,"Fokusområde 1: Öka kunskap om inträffade vårdskador",null,"Fokusområde 2: Tillförlitliga och säkra system och processer ",null,"Fokusområde 3: Säker vård här och nu",null,"Fokusområde 4: Stärka analys, lärande och utveckling",null,"Fokusområde 5: Öka riskmedvetenhet och beredskap"]
["ID","Fokusområden","Aktuell lista","ID",1,"ID",2,"ID",3,"ID",4,"ID",5,"ID",6]
[{"$f":"IF(B22=\"\",\"\",MAX(A$21:A21)+1)","v":""},{"$f":"IF(COUNTIF('2.1. Viktiga utmaningar'!G7:G15,\"=Prioritera\"),'steg 2 - data'!B39,\"\")","v":""},null,{"$f":"IF(E22=\"\",\"\",MAX(D$21:D21)+1)","v":""},{"$f":"IF('2.1. Viktiga utmaningar'!G7=\"Prioritera\",'2.1. Viktiga utmaningar'!B7,\"\")","v":""},{"$f":"IF(G22=\"\",\"\",MAX(F$21:F21)+1)","v":""},{"$f":"IF('2.1. Viktiga utmaningar'!G17=\"Prioritera\",'2.1. Viktiga utmaningar'!B17,\"\")","v":""},{"$f":"IF(I22=\"\",\"\",MAX(H$21:H21)+1)","v":""},{"$f":"IF('2.1. Viktiga utmaningar'!G23=\"Prioritera\",'2.1. Viktiga utmaningar'!B23,\"\")","v":""},{"$f":"IF(K22=\"\",\"\",MAX(J$21:J21)+1)","v":""},{"$f":"IF('2.1. Viktiga utmaningar'!G30=\"Prioritera\",'2.1. Viktiga utmaningar'!B30,\"\")","v":""},{"$f":"IF(M22=\"\",\"\",MAX(L$21:L21)+1)","v":""},{"$f":"IF('2.1. Viktiga utmaningar'!G37=\"Prioritera\",'2.1. Viktiga utmaningar'!B37,\"\")","v":""},{"$f":"IF(O22=\"\",\"\",MAX(N$21:N21)+1)","v":""},{"$f":"IF('2.1. Viktiga utmaningar'!G42=\"Prioritera\",'2.1. Viktiga utmaningar'!B42,\"\")","v":""}]
[{"$f":"IF(B23=\"\",\"\",MAX(A$21:A22)+1)","v":""},{"$f":"IF(COUNTIF('2.1. Viktiga utmaningar'!G17:G21,\"=Prioritera\"),'steg 2 - data'!B40,\"\")","v":""},null,{"$f":"IF(E23=\"\",\"\",MAX(D$21:D22)+1)","v":""},{"$f":"IF('2.1. Viktiga utmaningar'!G8=\"Prioritera\",'2.1. Viktiga utmaningar'!B8,\"\")","v":""},{"$f":"IF(G23=\"\",\"\",MAX(F$21:F22)+1)","v":""},{"$f":"IF('2.1. Viktiga utmaningar'!G18=\"Prioritera\",'2.1. Viktiga utmaningar'!B18,\"\")","v":""},{"$f":"IF(I23=\"\",\"\",MAX(H$21:H22)+1)","v":""},{"$f":"IF('2.1. Viktiga utmaningar'!G24=\"Prioritera\",'2.1. Viktiga utmaningar'!B24,\"\")","v":""},{"$f":"IF(K23=\"\",\"\",MAX(J$21:J22)+1)","v":""},{"$f":"IF('2.1. Viktiga utmaningar'!G31=\"Prioritera\",'2.1. Viktiga utmaningar'!B31,\"\")","v":""},{"$f":"IF(M23=\"\",\"\",MAX(L$21:L22)+1)","v":""},{"$f":"IF('2.1. Viktiga utmaningar'!G38=\"Prioritera\",'2.1. Viktiga utmaningar'!B38,\"\")","v":""},{"$f":"IF(O23=\"\",\"\",MAX(N$21:N22)+1)","v":""},{"$f":"IF('2.1. Viktiga utmaningar'!G43=\"Prioritera\",'2.1. Viktiga utmaningar'!B43,\"\")","v":""}]
[{"$f":"IF(B24=\"\",\"\",MAX(A$21:A23)+1)","v":""},{"$f":"IF(COUNTIF('2.1. Viktiga utmaningar'!G23:G28,\"=Prioritera\"),'steg 2 - data'!B41,\"\")","v":""},null,{"$f":"IF(E24=\"\",\"\",MAX(D$21:D23)+1)","v":""},{"$f":"IF('2.1. Viktiga utmaningar'!G9=\"Prioritera\",'2.1. Viktiga utmaningar'!B9,\"\")","v":""},{"$f":"IF(G24=\"\",\"\",MAX(F$21:F23)+1)","v":""},{"$f":"IF('2.1. Viktiga utmaningar'!G19=\"Prioritera\",'2.1. Viktiga utmaningar'!B19,\"\")","v":""},{"$f":"IF(I24=\"\",\"\",MAX(H$21:H23)+1)","v":""},{"$f":"IF('2.1. Viktiga utmaningar'!G25=\"Prioritera\",'2.1. Viktiga utmaningar'!B25,\"\")","v":""},{"$f":"IF(K24=\"\",\"\",MAX(J$21:J23)+1)","v":""},{"$f":"IF('2.1. Viktiga utmaningar'!G32=\"Prioritera\",'2.1. Viktiga utmaningar'!B32,\"\")","v":""},{"$f":"IF(M24=\"\",\"\",MAX(L$21:L23)+1)","v":""},{"$f":"IF('2.1. Viktiga utmaningar'!G39=\"Prioritera\",'2.1. Viktiga utmaningar'!B39,\"\")","v":""},{"$f":"IF(O24=\"\",\"\",MAX(N$21:N23)+1)","v":""},{"$f":"IF('2.1. Viktiga utmaningar'!G44=\"Prioritera\",'2.1. Viktiga utmaningar'!B44,\"\")","v":""}]
[{"$f":"IF(B25=\"\",\"\",MAX(A$21:A24)+1)","v":""},{"$f":"IF(COUNTIF('2.1. Viktiga utmaningar'!G30:G35,\"=Prioritera\"),'steg 2 - data'!B42,\"\")","v":""},null,{"$f":"IF(E25=\"\",\"\",MAX(D$21:D24)+1)","v":""},{"$f":"IF('2.1. Viktiga utmaningar'!G10=\"Prioritera\",'2.1. Viktiga utmaningar'!B10,\"\")","v":""},{"$f":"IF(G25=\"\",\"\",MAX(F$21:F24)+1)","v":""},{"$f":"IF('2.1. Viktiga utmaningar'!G20=\"Prioritera\",'2.1. Viktiga utmaningar'!B20,\"\")","v":""},{"$f":"IF(I25=\"\",\"\",MAX(H$21:H24)+1)","v":""},{"$f":"IF('2.1. Viktiga utmaningar'!G26=\"Prioritera\",'2.1. Viktiga utmaningar'!B26,\"\")","v":""},{"$f":"IF(K25=\"\",\"\",MAX(J$21:J24)+1)","v":""},{"$f":"IF('2.1. Viktiga utmaningar'!G33=\"Prioritera\",'2.1. Viktiga utmaningar'!B33,\"\")","v":""},{"$f":"IF(M25=\"\",\"\",MAX(L$21:L24)+1)","v":""},{"$f":"IF('2.1. Viktiga utmaningar'!G40=\"Prioritera\",'2.1. Viktiga utmaningar'!B40,\"\")","v":""},{"$f":"IF(O25=\"\",\"\",MAX(N$21:N24)+1)","v":""}]
[{"$f":"IF(B26=\"\",\"\",MAX(A$21:A25)+1)","v":""},{"$f":"IF(COUNTIF('2.1. Viktiga utmaningar'!G37:G40,\"=Prioritera\"),'steg 2 - data'!B43,\"\")","v":""},null,{"$f":"IF(E26=\"\",\"\",MAX(D$21:D25)+1)","v":""},{"$f":"IF('2.1. Viktiga utmaningar'!G11=\"Prioritera\",'2.1. Viktiga utmaningar'!B11,\"\")","v":""},{"$f":"IF(G26=\"\",\"\",MAX(F$21:F25)+1)","v":""},{"$f":"IF('2.1. Viktiga utmaningar'!G21=\"Prioritera\",'2.1. Viktiga utmaningar'!B21,\"\")","v":""},{"$f":"IF(I26=\"\",\"\",MAX(H$21:H25)+1)","v":""},{"$f":"IF('2.1. Viktiga utmaningar'!G27=\"Prioritera\",'2.1. Viktiga utmaningar'!B27,\"\")","v":""},{"$f":"IF(K26=\"\",\"\",MAX(J$21:J25)+1)","v":""},{"$f":"IF('2.1. Viktiga utmaningar'!G34=\"Prioritera\",'2.1. Viktiga utmaningar'!B34,\"\")","v":""},{"$f":"IF(M26=\"\",\"\",MAX(L$21:L25)+1)","v":""},null,{"$f":"IF(O26=\"\",\"\",MAX(N$21:N25)+1)","v":""}]
[{"$f":"IF(B27=\"\",\"\",MAX(A$21:A26)+1)","v":""},{"$f":"IF(COUNTIF('2.1. Viktiga utmaningar'!G42:G44,\"=Prioritera\"),'steg 2 - data'!B44,\"\")","v":""},null,{"$f":"IF(E27=\"\",\"\",MAX(D$21:D26)+1)","v":""},{"$f":"IF('2.1. Viktiga utmaningar'!G12=\"Prioritera\",'2.1. Viktiga utmaningar'!B12,\"\")","v":""},{"$f":"IF(G27=\"\",\"\",MAX(F$21:F26)+1)","v":""},null,{"$f":"IF(I27=\"\",\"\",MAX(H$21:H26)+1)","v":""},{"$f":"IF('2.1. Viktiga utmaningar'!G28=\"Prioritera\",'2.1. Viktiga utmaningar'!B28,\"\")","v":""},{"$f":"IF(K27=\"\",\"\",MAX(J$21:J26)+1)","v":""},{"$f":"IF('2.1. Viktiga utmaningar'!G35=\"Prioritera\",'2.1. Viktiga utmaningar'!B35,\"\")","v":""},{"$f":"IF(M27=\"\",\"\",MAX(L$21:L26)+1)","v":""},null,{"$f":"IF(O27=\"\",\"\",MAX(N$21:N26)+1)","v":""}]
[{"$f":"IF(B28=\"\",\"\",MAX(A$21:A27)+1)","v":""},null,null,{"$f":"IF(E28=\"\",\"\",MAX(D$21:D27)+1)","v":""},{"$f":"IF('2.1. Viktiga utmaningar'!G13=\"Prioritera\",'2.1. Viktiga utmaningar'!B13,\"\")","v":""},{"$f":"IF(G28=\"\",\"\",MAX(F$21:F27)+1)","v":""},null,{"$f":"IF(I28=\"\",\"\",MAX(H$21:H27)+1)","v":""},null,{"$f":"IF(K28=\"\",\"\",MAX(J$21:J27)+1)","v":""},null,{"$f":"IF(M28=\"\",\"\",MAX(L$21:L27)+1)","v":""},null,{"$f":"IF(O28=\"\",\"\",MAX(N$21:N27)+1)","v":""}]
[{"$f":"IF(B29=\"\",\"\",MAX(A$21:A28)+1)","v":""},null,null,{"$f":"IF(E29=\"\",\"\",MAX(D$21:D28)+1)","v":""},{"$f":"IF('2.1. Viktiga utmaningar'!G14=\"Prioritera\",'2.1. Viktiga utmaningar'!B14,\"\")","v":""},{"$f":"IF(G29=\"\",\"\",MAX(F$21:F28)+1)","v":""},null,{"$f":"IF(I29=\"\",\"\",MAX(H$21:H28)+1)","v":""},null,{"$f":"IF(K29=\"\",\"\",MAX(J$21:J28)+1)","v":""},null,{"$f":"IF(M29=\"\",\"\",MAX(L$21:L28)+1)","v":""},null,{"$f":"IF(O29=\"\",\"\",MAX(N$21:N28)+1)","v":""}]
[{"$f":"IF(B30=\"\",\"\",MAX(A$21:A29)+1)","v":""},null,null,{"$f":"IF(E30=\"\",\"\",MAX(D$21:D29)+1)","v":""},{"$f":"IF('2.1. Viktiga utmaningar'!G15=\"Prioritera\",'2.1. Viktiga utmaningar'!B15,\"\")","v":""},{"$f":"IF(G30=\"\",\"\",MAX(F$21:F29)+1)","v":""},null,{"$f":"IF(I30=\"\",\"\",MAX(H$21:H29)+1)","v":""},null,{"$f":"IF(K30=\"\",\"\",MAX(J$21:J29)+1)","v":""},null,{"$f":"IF(M30=\"\",\"\",MAX(L$21:L29)+1)","v":""},null,{"$f":"IF(O30=\"\",\"\",MAX(N$21:N29)+1)","v":""}]
[{"$f":"IF(B31=\"\",\"\",MAX(A$21:A30)+1)","v":""},null,null,{"$f":"IF(E31=\"\",\"\",MAX(D$21:D30)+1)","v":""},null,{"$f":"IF(G31=\"\",\"\",MAX(F$21:F30)+1)","v":""},null,{"$f":"IF(I31=\"\",\"\",MAX(H$21:H30)+1)","v":""},null,{"$f":"IF(K31=\"\",\"\",MAX(J$21:J30)+1)","v":""},null,{"$f":"IF(M31=\"\",\"\",MAX(L$21:L30)+1)","v":""},null,{"$f":"IF(O31=\"\",\"\",MAX(N$21:N30)+1)","v":""}]
[{"$f":"IF(B32=\"\",\"\",MAX(A$21:A31)+1)","v":""},null,null,{"$f":"IF(E32=\"\",\"\",MAX(D$21:D31)+1)","v":""},null,{"$f":"IF(G32=\"\",\"\",MAX(F$21:F31)+1)","v":""},null,{"$f":"IF(I32=\"\",\"\",MAX(H$21:H31)+1)","v":""},null,{"$f":"IF(K32=\"\",\"\",MAX(J$21:J31)+1)","v":""},null,{"$f":"IF(M32=\"\",\"\",MAX(L$21:L31)+1)","v":""},null,{"$f":"IF(O32=\"\",\"\",MAX(N$21:N31)+1)","v":""}]
[{"$f":"IF(B33=\"\",\"\",MAX(A$21:A32)+1)","v":""},null,null,{"$f":"IF(E33=\"\",\"\",MAX(D$21:D32)+1)","v":""},null,{"$f":"IF(G33=\"\",\"\",MAX(F$21:F32)+1)","v":""},null,{"$f":"IF(I33=\"\",\"\",MAX(H$21:H32)+1)","v":""},null,{"$f":"IF(K33=\"\",\"\",MAX(J$21:J32)+1)","v":""},null,{"$f":"IF(M33=\"\",\"\",MAX(L$21:L32)+1)","v":""},null,{"$f":"IF(O33=\"\",\"\",MAX(N$21:N32)+1)","v":""}]
[{"$f":"IF(B34=\"\",\"\",MAX(A$21:A33)+1)","v":""},null,null,{"$f":"IF(E34=\"\",\"\",MAX(D$21:D33)+1)","v":""},null,{"$f":"IF(G34=\"\",\"\",MAX(F$21:F33)+1)","v":""},null,{"$f":"IF(I34=\"\",\"\",MAX(H$21:H33)+1)","v":""},null,{"$f":"IF(K34=\"\",\"\",MAX(J$21:J33)+1)","v":""},null,{"$f":"IF(M34=\"\",\"\",MAX(L$21:L33)+1)","v":""},null,{"$f":"IF(O34=\"\",\"\",MAX(N$21:N33)+1)","v":""}]
[{"$f":"IF(B35=\"\",\"\",MAX(A$21:A34)+1)","v":""},null,null,{"$f":"IF(E35=\"\",\"\",MAX(D$21:D34)+1)","v":""},null,{"$f":"IF(G35=\"\",\"\",MAX(F$21:F34)+1)","v":""},null,{"$f":"IF(I35=\"\",\"\",MAX(H$21:H34)+1)","v":""},null,{"$f":"IF(K35=\"\",\"\",MAX(J$21:J34)+1)","v":""},null,{"$f":"IF(M35=\"\",\"\",MAX(L$21:L34)+1)","v":""},null,{"$f":"IF(O35=\"\",\"\",MAX(N$21:N34)+1)","v":""}]
[]
[null,null,null,null,"Grundläggande förutsättningar för patientsäkerhetsarbete",null,"Fokusområde 1: Öka kunskap om inträffade vårdskador",null,"Fokusområde 2: Tillförlitliga och säkra system och processer ",null,"Fokusområde 3: Säker vård här och nu",null,"Fokusområde 4: Stärka analys, lärande och utveckling",null,"Fokusområde 5: Öka riskmedvetenhet och beredskap"]
[null,"Fokusområden","Aktuell lista",null,1,null,2,null,3,null,4,null,5,null,6]
[null,"Grundläggande förutsättningar för patientsäkerhetsarbete",null,null,"Engagerad ledning och tydlig styrning ",null,"Avvikelserapportering",null,"Tillförlitliga och säkra processer – i vård och behandling",null,"Förmåga att förutse variationer och störningar i närtid",null,"Uppföljning av patientsäkerheten genom insamling och sammanställning av data från flera källor",null,"Beredskap och planering för hantering av risker på lång sikt"]
[null,"Fokusområde 1: Öka kunskap om inträffade vårdskador",null,null,"En god säkerhetskultur",null,"Utredning efter vårdskador och andra avvikelser samt återkoppling till berörda",null,"Tillförlitliga och säkra processer – i samordning och informationsdelning mellan aktörer",null,"Situationsanpassning",null,"Analyser som möjliggör lärande",null,"Omvärldsbevakning ur ett patientsäkerhetsperspektiv"]
[null,"Fokusområde 2: Tillförlitliga och säkra system och processer ",null,null,"Adekvat kunskap och kompetens",null,"Minimering av effekter av negativa händelser",null,"Förebyggande arbete för att minska risker för specifika vårdskador",null,"Dagligt patientsäkerhetsarbete",null,"Lärande från analyser och det egna arbetet",null,"Simulering samt beredskaps- och färdighetsträning"]
[null,"Fokusområde 3: Säker vård här och nu",null,null,"Patienten som medskapare",null,"Mätning och sammanställning av information om vårdskador",null,"Verktyg, metoder och arbetssätt för ett patientsäkert arbete",null,null,null,"Spridning av kunskap och lärdomar"]
[null,"Fokusområde 4: Stärka analys, lärande och utveckling",null,null,"Patienter och närståendes synpunkter och klagomål",null,"Mätning och sammanställning av information om vårdskador – i vårdens övergångar",null,null,null,"Säker arbetsmiljö"]
[null,"Fokusområde 5: Öka riskmedvetenhet och beredskap",null,null,"Patientmedverkan i utveckling av processer och arbetssätt",null,null,null,"Medicinteknik, medicintekniska produkter, hjälpmedel och välfärdsteknik",null,"Säker bemanning"]
[null,null,null,null,"Patientens delaktighet i den egna vården",null,null,null,"Ändamålsenliga vårdmiljöer",null,"Löpande granskning och kontroll av patientsäkerheten hos olika vårdgivare / delar av organisationen"]
[null,null,null,null,"Patientperspektiv i analys, lärande och utveckling"]
[null,null,null,null,"Patientmedverkan för ökad riskmedvetenhet och beredskap"]
[]
[null,{"$f":"IF(COUNTIF('2.1. Viktiga utmaningar'!G14:G44,\"=Prioriterad\"),'steg 2 - data'!B66,\"\")","v":""}]
[null,{"$f":"IF(COUNTIF('2.1. Viktiga utmaningar'!G46:G52,\"=Prioriterad\"),'steg 2 - data'!B67,\"\")","v":""}]
[null,{"$f":"IF(COUNTIF('2.1. Viktiga utmaningar'!G54:G60,\"=Prioriterad\"),'steg 2 - data'!B68,\"\")","v":""}]
[null,{"$f":"IF(COUNTIF('2.1. Viktiga utmaningar'!G62:G66,\"=Prioriterad\"),'steg 2 - data'!B69,\"\")","v":""}]
[null,{"$f":"IF(COUNTIF('2.1. Viktiga utmaningar'!G68:G71,\"=Prioriterad\"),'steg 2 - data'!B70,\"\")","v":""}]
[null,{"$f":"IF(COUNTIF('2.1. Viktiga utmaningar'!G36:G39,\"=Prioriterad\"),'steg 2 - data'!B71,\"\")","v":""}]

{"sheet":"clear2","index":7,"n_rows":62,"n_cols":8,"rows_kept":62,"cut":false,"hidden":true,"merged":[[1,1,1,3],[2,1,2,3]]}
[]
[null,{"$f":"\"Handlingsalternativ, \"&'1.1. Nulägesanalys'!B3:E3&\"\"","v":"Handlingsalternativ, Välj region från listan (alternativt organisation)"}]
[null,{"$f":"\"\"&'1.1. Nulägesanalys'!B5:E5&\"\"","v":""}]
[]
[null,"Välj område","Välj tema","Beskriv insatser för att möta de identifierade utmaningarna","Beskriv vilken/vilka aktörer som bör agera","Uppskattad resursåtgång","Förväntad effekt","Prio-värde"]
[null,null,null,null,null,null,null,{"$f":"IFERROR(VLOOKUP(F6,Variabler!$C$33:$D$35,2,FALSE)+VLOOKUP(G6,Variabler!$E$33:$F$36,2,FALSE),\"\")","v":""}]
[null,null,null,null,null,null,null,{"$f":"IFERROR(VLOOKUP(F7,Variabler!$C$33:$D$35,2,FALSE)+VLOOKUP(G7,Variabler!$E$33:$F$36,2,FALSE),\"\")","v":""}]
[null,null,null,null,null,null,null,{"$f":"IFERROR(VLOOKUP(F8,Variabler!$C$33:$D$35,2,FALSE)+VLOOKUP(G8,Variabler!$E$33:$F$36,2,FALSE),\"\")","v":""}]
[null,null,null,null,null,null,null,{"$f":"IFERROR(VLOOKUP(F9,Variabler!$C$33:$D$35,2,FALSE)+VLOOKUP(G9,Variabler!$E$33:$F$36,2,FALSE),\"\")","v":""}]
[null,null,null,null,null,null,null,{"$f":"IFERROR(VLOOKUP(F10,Variabler!$C$33:$D$35,2,FALSE)+VLOOKUP(G10,Variabler!$E$33:$F$36,2,FALSE),\"\")","v":""}]
[null,null,null,null,null,null,null,{"$f":"IFERROR(VLOOKUP(F11,Variabler!$C$33:$D$35,2,FALSE)+VLOOKUP(G11,Variabler!$E$33:$F$36,2,FALSE),\"\")","v":""}]
[null,null,null,null,null,null,null,{"$f":"IFERROR(VLOOKUP(F12,Variabler!$C$33:$D$35,2,FALSE)+VLOOKUP(G12,Variabler!$E$33:$F$36,2,FALSE),\"\")","v":""}]
[null,null,null,null,null,null,null,{"$f":"IFERROR(VLOOKUP(F13,Variabler!$C$33:$D$35,2,FALSE)+VLOOKUP(G13,Variabler!$E$33:$F$36,2,FALSE),\"\")","v":""}]
[null,null,null,null,null,null,null,{"$f":"IFERROR(VLOOKUP(F14,Variabler!$C$33:$D$35,2,FALSE)+VLOOKUP(G14,Variabler!$E$33:$F$36,2,FALSE),\"\")","v":""}]
[null,null,null,null,null,null,null,{"$f":"IFERROR(VLOOKUP(F15,Variabler!$C$33:$D$35,2,FALSE)+VLOOKUP(G15,Variabler!$E$33:$F$36,2,FALSE),\"\")","v":""}]
[null,null,null,null,null,null,null,{"$f":"IFERROR(VLOOKUP(F16,Variabler!$C$33:$D$35,2,FALSE)+VLOOKUP(G16,Variabler!$E$33:$F$36,2,FALSE),\"\")","v":""}]
[null,null,null,null,null,null,null,{"$f":"IFERROR(VLOOKUP(F17,Variabler!$C$33:$D$35,2,FALSE)+VLOOKUP(G17,Variabler!$E$33:$F$36,2,FALSE),\"\")","v":""}]
[null,null,null,null,null,null,null,{"$f":"IFERROR(VLOOKUP(F18,Variabler!$C$33:$D$35,2,FALSE)+VLOOKUP(G18,Variabler!$E$33:$F$36,2,FALSE),\"\")","v":""}]
[null,null,null,null,null,null,null,{"$f":"IFERROR(VLOOKUP(F19,Variabler!$C$33:$D$35,2,FALSE)+VLOOKUP(G19,Variabler!$E$33:$F$36,2,FALSE),\"\")","v":""}]
[null,null,null,null,null,null,null,{"$f":"IFERROR(VLOOKUP(F20,Variabler!$C$33:$D$35,2,FALSE)+VLOOKUP(G20,Variabler!$E$33:$F$36,2,FALSE),\"\")","v":""}]
[null,null,null,null,null,null,null,{"$f":"IFERROR(VLOOKUP(F21,Variabler!$C$33:$D$35,2,FALSE)+VLOOKUP(G21,Variabler!$E$33:$F$36,2,FALSE),\"\")","v":""}]
[null,null,null,null,null,null,null,{"$f":"IFERROR(VLOOKUP(F22,Variabler!$C$33:$D$35,2,FALSE)+VLOOKUP(G22,Variabler!$E$33:$F$36,2,FALSE),\"\")","v":""}]
[null,null,null,null,null,null,null,{"$f":"IFERROR(VLOOKUP(F23,Variabler!$C$33:$D$35,2,FALSE)+VLOOKUP(G23,Variabler!$E$33:$F$36,2,FALSE),\"\")","v":""}]
[null,null,null,null,null,null,null,{"$f":"IFERROR(VLOOKUP(F24,Variabler!$C$33:$D$35,2,FALSE)+VLOOKUP(G24,Variabler!$E$33:$F$36,2,FALSE),\"\")","v":""}]
[null,null,null,null,null,null,null,{"$f":"IFERROR(VLOOKUP(F25,Variabler!$C$33:$D$35,2,FALSE)+VLOOKUP(G25,Variabler!$E$33:$F$36,2,FALSE),\"\")","v":""}]
[null,null,null,null,null,null,null,{"$f":"IFERROR(VLOOKUP(F26,Variabler!$C$33:$D$35,2,FALSE)+VLOOKUP(G26,Variabler!$E$33:$F$36,2,FALSE),\"\")","v":""}]
[null,null,null,null,null,null,null,{"$f":"IFERROR(VLOOKUP(F27,Variabler!$C$33:$D$35,2,FALSE)+VLOOKUP(G27,Variabler!$E$33:$F$36,2,FALSE),\"\")","v":""}]
[null,null,null,null,null,null,null,{"$f":"IFERROR(VLOOKUP(F28,Variabler!$C$33:$D$35,2,FALSE)+VLOOKUP(G28,Variabler!$E$33:$F$36,2,FALSE),\"\")","v":""}]
[null,null,null,null,null,null,null,{"$f":"IFERROR(VLOOKUP(F29,Variabler!$C$33:$D$35,2,FALSE)+VLOOKUP(G29,Variabler!$E$33:$F$36,2,FALSE),\"\")","v":""}]
[null,null,null,null,null,null,null,{"$f":"IFERROR(VLOOKUP(F30,Variabler!$C$33:$D$35,2,FALSE)+VLOOKUP(G30,Variabler!$E$33:$F$36,2,FALSE),\"\")","v":""}]
[null,null,null,null,null,null,null,{"$f":"IFERROR(VLOOKUP(F31,Variabler!$C$33:$D$35,2,FALSE)+VLOOKUP(G31,Variabler!$E$33:$F$36,2,FALSE),\"\")","v":""}]
[null,null,null,null,null,null,null,{"$f":"IFERROR(VLOOKUP(F32,Variabler!$C$33:$D$35,2,FALSE)+VLOOKUP(G32,Variabler!$E$33:$F$36,2,FALSE),\"\")","v":""}]
[null,null,null,null,null,null,null,{"$f":"IFERROR(VLOOKUP(F33,Variabler!$C$33:$D$35,2,FALSE)+VLOOKUP(G33,Variabler!$E$33:$F$36,2,FALSE),\"\")","v":""}]
[null,null,null,null,null,null,null,{"$f":"IFERROR(VLOOKUP(F34,Variabler!$C$33:$D$35,2,FALSE)+VLOOKUP(G34,Variabler!$E$33:$F$36,2,FALSE),\"\")","v":""}]
[null,null,null,null,null,null,null,{"$f":"IFERROR(VLOOKUP(F35,Variabler!$C$33:$D$35,2,FALSE)+VLOOKUP(G35,Variabler!$E$33:$F$36,2,FALSE),\"\")","v":""}]
[null,null,null,null,null,null,null,{"$f":"IFERROR(VLOOKUP(F36,Variabler!$C$33:$D$35,2,FALSE)+VLOOKUP(G36,Variabler!$E$33:$F$36,2,FALSE),\"\")","v":""}]
[null,null,null,null,null,null,null,{"$f":"IFERROR(VLOOKUP(F37,Variabler!$C$33:$D$35,2,FALSE)+VLOOKUP(G37,Variabler!$E$33:$F$36,2,FALSE),\"\")","v":""}]
[null,null,null,null,null,null,null,{"$f":"IFERROR(VLOOKUP(F38,Variabler!$C$33:$D$35,2,FALSE)+VLOOKUP(G38,Variabler!$E$33:$F$36,2,FALSE),\"\")","v":""}]
[null,null,null,null,null,null,null,{"$f":"IFERROR(VLOOKUP(F39,Variabler!$C$33:$D$35,2,FALSE)+VLOOKUP(G39,Variabler!$E$33:$F$36,2,FALSE),\"\")","v":""}]
[null,null,null,null,null,null,null,{"$f":"IFERROR(VLOOKUP(F40,Variabler!$C$33:$D$35,2,FALSE)+VLOOKUP(G40,Variabler!$E$33:$F$36,2,FALSE),\"\")","v":""}]
[null,null,null,null,null,null,null,{"$f":"IFERROR(VLOOKUP(F41,Variabler!$C$33:$D$35,2,FALSE)+VLOOKUP(G41,Variabler!$E$33:$F$36,2,FALSE),\"\")","v":""}]
[null,null,null,null,null,null,null,{"$f":"IFERROR(VLOOKUP(F42,Variabler!$C$33:$D$35,2,FALSE)+VLOOKUP(G42,Variabler!$E$33:$F$36,2,FALSE),\"\")","v":""}]
[null,null,null,null,null,null,null,{"$f":"IFERROR(VLOOKUP(F43,Variabler!$C$33:$D$35,2,FALSE)+VLOOKUP(G43,Variabler!$E$33:$F$36,2,FALSE),\"\")","v":""}]
[null,null,null,null,null,null,null,{"$f":"IFERROR(VLOOKUP(F44,Variabler!$C$33:$D$35,2,FALSE)+VLOOKUP(G44,Variabler!$E$33:$F$36,2,FALSE),\"\")","v":""}]
[null,null,null,null,null,null,null,{"$f":"IFERROR(VLOOKUP(F45,Variabler!$C$33:$D$35,2,FALSE)+VLOOKUP(G45,Variabler!$E$33:$F$36,2,FALSE),\"\")","v":""}]
[null,null,null,null,null,null,null,{"$f":"IFERROR(VLOOKUP(F46,Variabler!$C$33:$D$35,2,FALSE)+VLOOKUP(G46,Variabler!$E$33:$F$36,2,FALSE),\"\")","v":""}]
[null,null,null,null,null,null,null,{"$f":"IFERROR(VLOOKUP(F47,Variabler!$C$33:$D$35,2,FALSE)+VLOOKUP(G47,Variabler!$E$33:$F$36,2,FALSE),\"\")","v":""}]
[null,null,null,null,null,null,null,{"$f":"IFERROR(VLOOKUP(F48,Variabler!$C$33:$D$35,2,FALSE)+VLOOKUP(G48,Variabler!$E$33:$F$36,2,FALSE),\"\")","v":""}]
[null,null,null,null,null,null,null,{"$f":"IFERROR(VLOOKUP(F49,Variabler!$C$33:$D$35,2,FALSE)+VLOOKUP(G49,Variabler!$E$33:$F$36,2,FALSE),\"\")","v":""}]
[null,null,null,null,null,null,null,{"$f":"IFERROR(VLOOKUP(F50,Variabler!$C$33:$D$35,2,FALSE)+VLOOKUP(G50,Variabler!$E$33:$F$36,2,FALSE),\"\")","v":""}]
[null,null,null,null,null,null,null,{"$f":"IFERROR(VLOOKUP(F51,Variabler!$C$33:$D$35,2,FALSE)+VLOOKUP(G51,Variabler!$E$33:$F$36,2,FALSE),\"\")","v":""}]
[null,null,null,null,null,null,null,{"$f":"IFERROR(VLOOKUP(F52,Variabler!$C$33:$D$35,2,FALSE)+VLOOKUP(G52,Variabler!$E$33:$F$36,2,FALSE),\"\")","v":""}]
[null,null,null,null,null,null,null,{"$f":"IFERROR(VLOOKUP(F53,Variabler!$C$33:$D$35,2,FALSE)+VLOOKUP(G53,Variabler!$E$33:$F$36,2,FALSE),\"\")","v":""}]
[null,null,null,null,null,null,null,{"$f":"IFERROR(VLOOKUP(F54,Variabler!$C$33:$D$35,2,FALSE)+VLOOKUP(G54,Variabler!$E$33:$F$36,2,FALSE),\"\")","v":""}]
[null,null,null,null,null,null,null,{"$f":"IFERROR(VLOOKUP(F55,Variabler!$C$33:$D$35,2,FALSE)+VLOOKUP(G55,Variabler!$E$33:$F$36,2,FALSE),\"\")","v":""}]
[null,null,null,null,null,null,null,{"$f":"IFERROR(VLOOKUP(F56,Variabler!$C$33:$D$35,2,FALSE)+VLOOKUP(G56,Variabler!$E$33:$F$36,2,FALSE),\"\")","v":""}]
[null,null,null,null,null,null,null,{"$f":"IFERROR(VLOOKUP(F57,Variabler!$C$33:$D$35,2,FALSE)+VLOOKUP(G57,Variabler!$E$33:$F$36,2,FALSE),\"\")","v":""}]
[null,null,null,null,null,null,null,{"$f":"IFERROR(VLOOKUP(F58,Variabler!$C$33:$D$35,2,FALSE)+VLOOKUP(G58,Variabler!$E$33:$F$36,2,FALSE),\"\")","v":""}]
[null,null,null,null,null,null,null,{"$f":"IFERROR(VLOOKUP(F59,Variabler!$C$33:$D$35,2,FALSE)+VLOOKUP(G59,Variabler!$E$33:$F$36,2,FALSE),\"\")","v":""}]
[null,null,null,null,null,null,null,{"$f":"IFERROR(VLOOKUP(F60,Variabler!$C$33:$D$35,2,FALSE)+VLOOKUP(G60,Variabler!$E$33:$F$36,2,FALSE),\"\")","v":""}]
[null,null,null,null,null,null,null,{"$f":"IFERROR(VLOOKUP(F61,Variabler!$C$33:$D$35,2,FALSE)+VLOOKUP(G61,Variabler!$E$33:$F$36,2,FALSE),\"\")","v":""}]
[null,null,null,null,null,null,null,{"$f":"IFERROR(VLOOKUP(F62,Variabler!$C$33:$D$35,2,FALSE)+VLOOKUP(G62,Variabler!$E$33:$F$36,2,FALSE),\"\")","v":""}]

{"sheet":"clearnulageinmatning","index":8,"n_rows":446,"n_cols":9,"rows_kept":446,"cut":false,"hidden":true,"merged":[[1,2,1,4],[2,1,2,4],[4,1,4,4],[6,1,6,4],[11,7,26,8],[3,1,3,4],[5,1,5,4]]}
[]
[null," ","Kort instruktion: I denna flik genomför ni er nulägesanalys. Ange först bakgrundsinformation. Tryck på cellen nedan för att välja er region (alternativt organisation). I fälten under fyller ni i vilka aktörer/personer som deltagit i genomförandet samt vilka delar av er hälso- och sjukvård som nulägesanalysen avser, inklusive tidpunkt (exempelvis hela regionen eller ett specifikt verksamhetsområde, VT2021). Se s. 15 i genomförandestödet för exempel på hur det går att organisera arbetet med verktyget."]
[null,"Välj region från listan (alternativt organisation)"]
[null,"Nulägesanalys genomförd av:"]
[null,null,null,null,null,null,null,"A-C-frågor besvarade",{"$f":"COUNTIF($D$133:$D$1048576,\">\"\"\")","v":0}]
[null,"Nulägesanalysen avser:"]
[null,null,null,null,null,null,null,"A-C-frågor som återstår att besvara",{"$f":"99-I5","v":99}]
[]
[null,null,"Grundläggande förutsättningar för patientsäkerhetsarbete"]
[]
[]
[null,"0.1","Engagerad ledning och tydlig styrning","Svar","Besvarad"]
[]
[null,"A","Har ledningen och verksamhetsledningarna kunskap om vilket ansvar de har och hur de ska styra och leda för säker vård?",null,{"$f":"IF(D14>\"\",\"þ\",\"o\")","v":"o"}]
[]
[null,"B","Har ledningen och verksamheterna de stöd de behöver för att styra och leda för säker vård?",null,{"$f":"IF(D16>\"\",\"þ\",\"o\")","v":"o"}]
[]
[null,"C","Används dessa stöd och främjar styrningen och ledningen patientsäkerheten?",null,{"$f":"IF(D18>\"\",\"þ\",\"o\")","v":"o"}]
[]
[null,"D","Beskriv kortfattat de eventuella utmaningarna. Finns hinder eller möjliggörare för ett patientsäkert arbete inom temat?:"]
[]
[]
[]
[]
[null,"0.2","En god säkerhetskultur"]
[]
[null,"A","Har ledningen och verksamheterna kunskap om vad som kännetecknar en god säkerhetskultur?",null,{"$f":"IF(D27>\"\",\"þ\",\"o\")","v":"o"}]
[]
[null,"B","Har ledningen och verksamheterna de stöd de behöver för att främja en god säkerhetskultur?",null,{"$f":"IF(D29>\"\",\"þ\",\"o\")","v":"o"}]
[]
[null,"C","Finns det en kultur i alla verksamheter och inom ledningen som stärker patientsäkerheten?",null,{"$f":"IF(D31>\"\",\"þ\",\"o\")","v":"o"}]
[]
[null,"D","Beskriv kortfattat de eventuella utmaningarna. Finns hinder eller möjliggörare för ett patientsäkert arbete inom temat?:"]
[]
[]
[]
[]
[null,"0.3","Adekvat kunskap och kompetens"]
[]
[null,"A","Har ledningen och verksamheterna kunskap om vad chefer och medarbetare behöver veta och kunna för att arbeta patientsäkert?",null,{"$f":"IF(D40>\"\",\"þ\",\"o\")","v":"o"}]
[]
[null,"B","Erbjuder ledningen och verksamheterna ändamålsenlig utbildning och andra typer av stöd riktade till chefer och medarbetare för att bidra till adekvat kunskap och kompetens?",null,{"$f":"IF(D42>\"\",\"þ\",\"o\")","v":"o"}]
[]
[null,"C","Har verksamheterna en ändamålsenlig yrkesmässig kompetenssammansättning och har chefer och medarbetare adekvat kunskapsnivå om patientsäkerhet?",null,{"$f":"IF(D44>\"\",\"þ\",\"o\")","v":"o"}]
[]
[null,"D","Beskriv kortfattat de eventuella utmaningarna. Finns hinder eller möjliggörare för ett patientsäkert arbete inom temat?:"]
[]
[]
[]
[]
[null,"0.4","Patienten som medskapare"]
[]
[null,"A","Har ledningen och verksamheterna kunskap om varför patientmedverkan i vård och utvecklingsarbete är viktigt och hur patienter och närstående ska göras delaktiga?",null,{"$f":"IF(D53>\"\",\"þ\",\"o\")","v":"o"}]
[]
[null,"B","Har ledningen och verksamheterna de stöd de behöver för att göra patienter och närstående delaktiga i vård och utvecklingsarbete?",null,{"$f":"IF(D55>\"\",\"þ\",\"o\")","v":"o"}]
[]
[null,"C","Görs patienter och närstående till medskapare både i den egna vården och i vårdens utvecklingsarbete i tillräckligt stor utsträckning?",null,{"$f":"IF(D57>\"\",\"þ\",\"o\")","v":"o"}]
[]
[null,"D","Beskriv kortfattat de eventuella utmaningarna. Finns hinder eller möjliggörare för ett patientsäkert arbete inom temat?:"]
[]
[]
[]
[]
[null,"0.4:1","Patienter och närståendes synpunkter och klagomål"]
[]
[null,"A","Har ledningen och verksamheterna kunskap om hur patienter och närståendes synpunkter och klagomål om händelser som medfört eller hade kunnat medföra en vårdskada kan inhämtas och tas tillvara?",null,{"$f":"IF(D66>\"\",\"þ\",\"o\")","v":"o"}]
[]
[null,"B","Finns ändamålsenliga stöd, inklusive klagomålshanteringssystem, riktade till patienter, närstående och medarbetare för att möjliggöra insamling av patienter och närståendes synpunkter och klagomål?",null,{"$f":"IF(D68>\"\",\"þ\",\"o\")","v":"o"}]
[]
[null,"C","Används de system som finns för att samla in och analysera synpunkter och klagomål från patienter och närstående?",null,"o"]
[]
[null,"D","Beskriv kortfattat de eventuella utmaningarna. Finns hinder eller möjliggörare för ett patientsäkert arbete inom temat?:"]
[]
[]
[]
[]
[null,"0.4:2","Patientmedverkan i utveckling av processer och arbetssätt"]
[]
[null,"A","Har ledningen och verksamheterna kunskap om hur patienter och närstående kan involveras i utvecklingen av processer och arbetssätt?",null,{"$f":"IF(D79>\"\",\"þ\",\"o\")","v":"o"}]
[]
[null,"B","Har ledningen och verksamheterna de stöd de behöver för att involvera patienter och närstående i utvecklingen av processer och arbetssätt?",null,{"$f":"IF(D81>\"\",\"þ\",\"o\")","v":"o"}]
[]
[null,"C","Involveras patienter och närstående på ett lämpligt sätt i utvecklingen av processer och arbetssätt? ",null,"o"]
[]
[null,"D","Beskriv kortfattat de eventuella utmaningarna. Finns hinder eller möjliggörare för ett patientsäkert arbete inom temat?:"]
[]
[]
[]
[]
[null,"0.4:3","Patientens delaktighet i den egna vården"]
[]
[null,"A","Har ledningen och verksamheterna kunskap om hur patienter och närstående kan involveras som medskapare för att göra vården säkrare?",null,{"$f":"IF(D92>\"\",\"þ\",\"o\")","v":"o"}]
[]
[null,"B","Har ledningen och verksamheterna de stöd de behöver för att involvera patienter och närstående i vården, utifrån deras egna förutsättningar, på ett sätt som gör vården säkrare?",null,{"$f":"IF(D94>\"\",\"þ\",\"o\")","v":"o"}]
[]
[null,"C","Är patienter och närstående involverade i hälso-och sjukvården på ett sätt som främjar patientsäkerheten?",null,"o"]
[]
[null,"D","Beskriv kortfattat de eventuella utmaningarna. Finns hinder eller möjliggörare för ett patientsäkert arbete inom temat?:"]
[]
[]
[]
[]
[null,"0.4:4","Patientperspektiv i analys, lärande och utveckling"]
[]
[null,"A","Har ledningen och verksamheterna kunskap om hur patienters perspektiv kan säkerställas i arbetet med analys och lärande?",null,{"$f":"IF(D105>\"\",\"þ\",\"o\")","v":"o"}]
[]
[null,"B","Har ledningen och verksamheterna tillgång till de stöd de behöver för att ta tillvara på patientperspektivet i uppföljning och analyser?",null,{"$f":"IF(D107>\"\",\"þ\",\"o\")","v":"o"}]
[]
[null,"C","Sker ett kontinuerligt och ändamålsenligt lärande utifrån ett patientperspektiv som bidrar till ökad patientsäkerhet?",null,{"$f":"IF(D109>\"\",\"þ\",\"o\")","v":"o"}]
[]
[null,"D","Beskriv kortfattat de eventuella utmaningarna. Finns hinder eller möjliggörare för ett patientsäkert arbete inom temat?:"]
[]
[]
[]
[]
[null,"0.4:5","Patientmedverkan för ökad riskmedvetenhet och beredskap"]
[]
[null,"A","Har ledningen och verksamheterna kunskap om hur patienters och närståendes perspektiv kan integreras i arbetet för en ökad riskmedvetenhet och beredskap? ",null,{"$f":"IF(D118>\"\",\"þ\",\"o\")","v":"o"}]
[]
[null,"B","Har ledningen och verksamheterna de stöd och metoder de behöver för att involvera patienter och närstående? Exempelvis relevanta metoder för att samla in och tillgodogöra sig kunskap om patientupplevda risker i vården eller instruktioner för hur inkludering kan ske i beredskapsarbete.",null,{"$f":"IF(D120>\"\",\"þ\",\"o\")","v":"o"}]
[]
[null,"C","Inhämtas och inkluderas patient- och närståendeperspektiv i den långsiktiga planeringen?",null,"o"]
[]
[null,"D","Beskriv kortfattat de eventuella utmaningarna. Finns hinder eller möjliggörare för ett patientsäkert arbete inom temat?:"]
[]
[]
[]
[null,1,"Fokusområde 1: Öka kunskap om inträffade vårdskador"]
[]
[]
[null,"1.1","Avvikelserapportering"]
[]
[null,"A","Har ledningen och verksamheterna kunskap om varför avvikelserapportering är viktigt, när det bör göras en avvikelserapport och vem som är ansvarig?",null,{"$f":"IF(D133>\"\",\"þ\",\"o\")","v":"o"}]
[]
[null,"B","Har ledningen och verksamheterna de stöd de behöver för att genomföra avvikelserapportering i enlighet med lag och bästa praxis? Ex. stöd i form av ändamålsenliga avvikelserapporteringssystem, ledningens fokus, tid för avvikelserapportering, användarstöd etc.",null,{"$f":"IF(D135>\"\",\"þ\",\"o\")","v":"o"}]
[]
[null,"C","Sker rapportering när avvikelser inträffar i vården av patienter och i andra sammanhang med bäring på patientsäkerheten?",null,{"$f":"IF(D137>\"\",\"þ\",\"o\")","v":"o"}]
[]
[null,"D","Beskriv kortfattat de eventuella utmaningarna. Finns hinder eller möjliggörare för ett patientsäkert arbete inom temat?:"]
[]
[]
[]
[]
[null,"1.2","Utredning efter vårdskador och andra avvikelser samt återkoppling till berörda"]
[]
[null,"A","Har ledningen och verksamheterna kunskap om hur utredning och händelseanalys efter vårdskador och andra avvikelser kan utföras på ett ändamålsenligt sätt?",null,{"$f":"IF(D146>\"\",\"þ\",\"o\")","v":"o"}]
[]
[null,"B","Har ledningen och verksamheterna de stöd de behöver för att genomföra utredning och händelseanalys?",null,{"$f":"IF(D148>\"\",\"þ\",\"o\")","v":"o"}]
[]
[null,"C","Genomförs utredningar inklusive analys av bakomliggande orsaker och återkoppling till berörda i samband med vårdskador och andra avvikelser?",null,{"$f":"IF(D150>\"\",\"þ\",\"o\")","v":"o"}]
[]
[null,"D","Beskriv kortfattat de eventuella utmaningarna. Finns hinder eller möjliggörare för ett patientsäkert arbete inom temat?:"]
[]
[]
[]
[]
[null,"1.3","Minimering av effekter av negativa händelser"]
[]
[null,"A","Har ledningen och verksamheterna kunskap om hur effekter av negativa händelser kan minimeras?",null,{"$f":"IF(D159>\"\",\"þ\",\"o\")","v":"o"}]
[]
[null,"B","Har ledningen och verksamheterna de stöd de behöver för att minimera effekter av negativa händelser? ",null,{"$f":"IF(D161>\"\",\"þ\",\"o\")","v":"o"}]
[]
[null,"C","Sker ett ändamålsenligt arbete för att minimera effekter av negativa händelser i hälso- och sjukvården i regionen?",null,{"$f":"IF(D163>\"\",\"þ\",\"o\")","v":"o"}]
[]
[null,"D","Beskriv kortfattat de eventuella utmaningarna. Finns hinder eller möjliggörare för ett patientsäkert arbete inom temat?:"]
[]
[]
[]
[]
[null,"1.4a","Mätning och sammanställning av information om vårdskador"]
[]
[null,"A","Har ledningen och verksamheterna kunskap om hur de ska mäta och sammanställa information om vårdskador? ",null,{"$f":"IF(D172>\"\",\"þ\",\"o\")","v":"o"}]
[]
[null,"B","Har ledningen och verksamheterna de stöd de behöver för att identifiera, mäta och sammanställa statistik kring vårdskador? Ex. i form av avvikelserapporteringssystem, mätinstrument, instruktioner?",null,{"$f":"IF(D174>\"\",\"þ\",\"o\")","v":"o"}]
[]
[null,"C","Genomförs identifiering, mätning och sammanställning av vårdskador som ger en samlad bild av vanliga och allvarliga vårdskador i regionen? ",null,"o"]
[]
[null,"D","Beskriv kortfattat de eventuella utmaningarna. Finns hinder eller möjliggörare för ett patientsäkert arbete inom temat?:"]
[]
[]
[]
[]
[null,"1.4b","Mätning och sammanställning av information om vårdskador – i vårdens övergångar"]
[]
[null,"A","Har ledningen och verksamheterna kunskap om hur de ska mäta och sammanställa information om vårdskador som sker specifikt i vårdens övergångar? ",null,{"$f":"IF(D185>\"\",\"þ\",\"o\")","v":"o"}]
[]
[null,"B","Har ledningen och verksamheterna de stöd de behöver för att identifiera, mäta och sammanställa statistik kring vårdskador som sker i vårdens övergångar? ",null,{"$f":"IF(D187>\"\",\"þ\",\"o\")","v":"o"}]
[]
[null,"C","Genomförs identifiering, mätning och sammanställning av vårdskador som ger en samlad bild av vanliga och allvarliga vårdskador som sker i vårdens övergångar?",null,{"$f":"IF(D189>\"\",\"þ\",\"o\")","v":"o"}]
[]
[null,"D","Beskriv kortfattat de eventuella utmaningarna. Finns hinder eller möjliggörare för ett patientsäkert arbete inom temat?:"]
[]
[]
[]
[null,2,"Fokusområde 2: Tillförlitliga och säkra system och processer "]
[]
[]
[null,"2.1a","Tillförlitliga och säkra processer – i vård och behandling"]
[]
[null,"A","Har ledningen och verksamheterna kunskap om vad som är säkra processer för vård och behandling i enlighet med bästa tillgängliga kunskap?",null,{"$f":"IF(D200>\"\",\"þ\",\"o\")","v":"o"}]
[]
[null,"B","Har verksamheterna tillgång till stöd som beskriver och möjliggör användningen av säkra processer?",null,{"$f":"IF(D202>\"\",\"þ\",\"o\")","v":"o"}]
[]
[null,"C","Finns en god följsamhet till säkra processer och rutiner?",null,"o"]
[]
[null,"D","Beskriv kortfattat de eventuella utmaningarna. Finns hinder eller möjliggörare för ett patientsäkert arbete inom temat?:"]
[]
[]
[]
[]
[null,"2.1b","Tillförlitliga och säkra processer – i samordning och informationsdelning mellan aktörer"]
[]
[null,"A","Har ledningen och verksamheterna kunskap om hur samverkan mellan olika vård- och omsorgsgivare kan organiseras på bästa sätt för att skapa säkra övergångar och en sammanhållen vård och omsorg för patienterna?",null,{"$f":"IF(D213>\"\",\"þ\",\"o\")","v":"o"}]
[]
[null,"B","Har ledningen och verksamheterna de stöd de behöver för att skapa förutsättningar för säkra och samordnade vårdövergångar? Finns ex. ändamålsenliga resurser, överenskommelser, processer för sammanhållen planering och lösningar för informationsdelning? ",null,{"$f":"IF(D215>\"\",\"þ\",\"o\")","v":"o"}]
[]
[null,"C","Sker samverkan mellan olika vårdgivare på ett sätt så att vårdövergångar är säkra och så att vården är sammanhållen? ",null,{"$f":"IF(D217>\"\",\"þ\",\"o\")","v":"o"}]
[]
[null,"D","Beskriv kortfattat de eventuella utmaningarna. Finns hinder eller möjliggörare för ett patientsäkert arbete inom temat?:"]
[]
[]
[]
[]
[null,"2.2","Förebyggande arbete för att minska risker för specifika vårdskador"]
[]
[null,"A","Har ledningen och verksamheterna kunskap om hur förebyggande arbete för att minska risker för specifika vårdskador ska genomföras?",null,{"$f":"IF(D226>\"\",\"þ\",\"o\")","v":"o"}]
[]
[null,"B","Har ledningen och verksamheterna de stöd de behöver för att arbeta förebyggande avseende specifika risker, till exempel fallrisk, smittspridning, läkemedelsbiverkningar och undernäring? ",null,{"$f":"IF(D228>\"\",\"þ\",\"o\")","v":"o"}]
[]
[null,"C","Tillämpas ett ändamålsenligt förebyggande arbete för att minska risker för specifika vårdskador, från riskbedömning till genomförande och uppföljning av åtgärder, i hela regionen?",null,{"$f":"IF(D230>\"\",\"þ\",\"o\")","v":"o"}]
[]
[null,"D","Beskriv kortfattat de eventuella utmaningarna. Finns hinder eller möjliggörare för ett patientsäkert arbete inom temat?:"]
[]
[]
[]
[]
[null,"2.3","Verktyg, metoder och arbetssätt för ett patientsäkert arbete"]
[]
[null,"A","Har ledningen och verksamheterna kunskap om vilka verktyg, metoder och arbetssätt som kan stärka patientsäkra arbetssätt?",null,{"$f":"IF(D239>\"\",\"þ\",\"o\")","v":"o"}]
[]
[null,"B","Har ledningen och verksamheterna de stöd de behöver för att tillämpa patientsäkra arbetsätt?",null,{"$f":"IF(D241>\"\",\"þ\",\"o\")","v":"o"}]
[]
[null,"C","Är användningen av verktyg, metoder och arbetssätt som stödjer ett patientsäkert arbetssätt heltäckande i regionen?",null,{"$f":"IF(D243>\"\",\"þ\",\"o\")","v":"o"}]
[]
[null,"D","Beskriv kortfattat de eventuella utmaningarna. Finns hinder eller möjliggörare för ett patientsäkert arbete inom temat?:"]
[]
[]
[]
[]
[null,"2.4","Medicinteknik, medicintekniska produkter, hjälpmedel och välfärdsteknik"]
[]
[null,"A","Har ledningen och verksamheterna kunskap om vad som utgör patientsäker medicinteknik, medicintekniska produkter, hjälpmedel och välfärdsteknik? ",null,{"$f":"IF(D252>\"\",\"þ\",\"o\")","v":"o"}]
[]
[null,"B","Har ledningen och verksamheterna de stöd de behöver för att säkerställa att patientsäkerheten beaktas vid beslut om och användning av medicinteknik, medicintekniska produkter, hjälpmedel och välfärdsteknik?",null,{"$f":"IF(D254>\"\",\"þ\",\"o\")","v":"o"}]
[]
[null,"C","Beaktas patientsäkerheten vid beslut om och användning av medicinteknik, medicintekniska produkter, hjälpmedel och välfärdsteknik i regionen?",null,"o"]
[]
[null,"D","Beskriv kortfattat de eventuella utmaningarna. Finns hinder eller möjliggörare för ett patientsäkert arbete inom temat?:"]
[]
[]
[]
[]
[null,"2.5","Ändamålsenliga vårdmiljöer"]
[]
[null,"A","Har ledningen och verksamheterna kunskap om vad som utgör säkra vårdmiljöer?",null,{"$f":"IF(D265>\"\",\"þ\",\"o\")","v":"o"}]
[]
[null,"B","Har ledningen och verksamheterna det stöd de behöver för att säkerställa ändamålsenliga vårdmiljöer? ",null,{"$f":"IF(D267>\"\",\"þ\",\"o\")","v":"o"}]
[]
[null,"C","Är boenden och lokaler där hälso- och sjukvård bedrivs utformade på ett patientsäkert sätt och sker lämpliga bedömningar och anpassningar vid vård i hemmet?",null,{"$f":"IF(D269>\"\",\"þ\",\"o\")","v":"o"}]
[]
[null,"D","Beskriv kortfattat de eventuella utmaningarna. Finns hinder eller möjliggörare för ett patientsäkert arbete inom temat?:"]
[]
[]
[]
[null,3,"Fokusområde 3: Säker vård här och nu "]
[]
[]
[null,"3.1","Förmåga att förutse variationer och störningar i närtid"]
[]
[null,"A","Har ledningen och verksamheterna kunskap om vilka möjliga variationer och störningar som kan uppstå som kan påverka patientsäkerheten?",null,{"$f":"IF(D280>\"\",\"þ\",\"o\")","v":"o"}]
[]
[null,"B","Har ledningen och verksamheterna de stöd de behöver för att följa och förutse variationer och störningar i närtid?",null,{"$f":"IF(D282>\"\",\"þ\",\"o\")","v":"o"}]
[]
[null,"C","Följer ledningen och verksamheterna variationer och störningar i närtid som kan påverka patientsäkerheten?",null,"o"]
[]
[null,"D","Beskriv kortfattat de eventuella utmaningarna. Finns hinder eller möjliggörare för ett patientsäkert arbete inom temat?:"]
[]
[]
[]
[]
[null,"3.2","Situationsanpassning"]
[]
[null,"A","Har ledningen och verksamheterna kunskap om betydelsen av situationsanpassning och om hur variationer och störningar ska hanteras?",null,{"$f":"IF(D293>\"\",\"þ\",\"o\")","v":"o"}]
[]
[null,"B","Har ledningen och verksamheterna de stöd de behöver för att anpassa vården för att upprätthålla patientsäkerheten under varierande förhållanden? ",null,{"$f":"IF(D295>\"\",\"þ\",\"o\")","v":"o"}]
[]
[null,"C","Har ledningen och verksamheterna förmåga att hantera störningar och variationer i närtid?",null,"o"]
[]
[null,"D","Beskriv kortfattat de eventuella utmaningarna. Finns hinder eller möjliggörare för ett patientsäkert arbete inom temat?:"]
[]
[]
[]
[]
[null,"3.3","Dagligt patientsäkerhetsarbete"]
[]
[null,"A","Har ledningen och verksamheterna kunskap om hur patientsäkerhet kan vara en integrerad del i det dagliga arbetet?",null,{"$f":"IF(D306>\"\",\"þ\",\"o\")","v":"o"}]
[]
[null,"B","Har ledningen och verksamheterna de förutsättningar och stöd de behöver för ett dagligt patientsäkerhetsarbete? ",null,{"$f":"IF(D308>\"\",\"þ\",\"o\")","v":"o"}]
[]
[null,"C","Sker ett ändamålsenligt dagligt patientsäkerhetsarbete i regionen?",null,{"$f":"IF(D310>\"\",\"þ\",\"o\")","v":"o"}]
[]
[null,"D","Beskriv kortfattat de eventuella utmaningarna. Finns hinder eller möjliggörare för ett patientsäkert arbete inom temat?:"]
[]
[]
[]
[]
[null,"3.4","Säker arbetsmiljö"]
[]
[null,"A","Har ledningen och verksamheterna kunskap om vad som utgör en god arbetsmiljö, som också främjar patientsäkerhet?",null,{"$f":"IF(D319>\"\",\"þ\",\"o\")","v":"o"}]
[]
[null,"B","Har ledningen och verksamheterna de stöd de behöver för att säkerställa en god arbetsmiljö?",null,{"$f":"IF(D321>\"\",\"þ\",\"o\")","v":"o"}]
[]
[null,"C","Tillämpar ledningen och verksamheterna stöd och rutiner som bidrar till en säker arbetsmiljö? ",null,{"$f":"IF(D323>\"\",\"þ\",\"o\")","v":"o"}]
[]
[null,"D","Beskriv kortfattat de eventuella utmaningarna. Finns hinder eller möjliggörare för ett patientsäkert arbete inom temat?:"]
[]
[]
[]
[]
[null,"3.5","Säker bemanning"]
[]
[null,"A","Har ledningen och verksamheterna kunskap om vad som utgör en säker bemanning inom sina ansvarsområden?",null,{"$f":"IF(D332>\"\",\"þ\",\"o\")","v":"o"}]
[]
[null,"B","Har ledningen och verksamheterna de stöd de behöver för att planera för och upprätthålla en säker bemanning? ",null,{"$f":"IF(D334>\"\",\"þ\",\"o\")","v":"o"}]
[]
[null,"C","Har verksamheterna en säker bemanning, som utgår från kunskap om medarbetarnas yrkeserfarenhet, kompetens och som främjar kontinuitet?",null,{"$f":"IF(D336>\"\",\"þ\",\"o\")","v":"o"}]
[]
[null,"D","Beskriv kortfattat de eventuella utmaningarna. Finns hinder eller möjliggörare för ett patientsäkert arbete inom temat?:"]
[]
[]
[]
[]
[null,"3.6","Granskning och kontroll av patientsäkerhet inom organisationen och hos andra vårdgivare"]
[]
[null,"A","Har ledningen såväl som verksamheterna kunskap om hur regionens egen granskning går till och varför den är viktig?",null,{"$f":"IF(D345>\"\",\"þ\",\"o\")","v":"o"}]
[]
[null,"B","Finns ändamålsenliga stöd för verksamheter att medverka i granskningen och ger underlagen tillräckligt stöd för ledningen som ska fatta beslut om åtgärder? ",null,{"$f":"IF(D347>\"\",\"þ\",\"o\")","v":"o"}]
[]
[null,"C","Är regionens egen granskning ändamålsenlig och är den tillräcklig för att säkerställa att vården är patientsäker?",null,{"$f":"IF(D349>\"\",\"þ\",\"o\")","v":"o"}]
[]
[null,"D","Beskriv kortfattat de eventuella utmaningarna. Finns hinder eller möjliggörare för ett patientsäkert arbete inom temat?:"]
[]
[]
[]
[null,4,"Fokusområde 4: Stärka analys, lärande och utveckling"]
[]
[]
[null,"4.1","Uppföljning av patientsäkerheten genom insamling och sammanställning av data från flera källor"]
[]
[null,"A","Har ledningen och verksamheterna kunskap om vilka datakällor som kan användas för uppföljning av patientsäkerheten och förutsättningarna för patientsäkerhetsarbete?",null,{"$f":"IF(D360>\"\",\"þ\",\"o\")","v":"o"}]
[]
[null,"B","Har ledningen och verksamheterna de stöd de behöver för att få en samlad bild av patientsäkerheten och förutsättningar för patientsäkerhetsarbetet samt utvecklingen över tid?",null,{"$f":"IF(D362>\"\",\"þ\",\"o\")","v":"o"}]
[]
[null,"C","Sammanställs relevanta data på olika nivåer så att det finns en samlad bild av patientsäkerheten och förutsättningarna för patientsäkerhetsarbete samt utvecklingen över tid?",null,"o"]
[]
[null,"D","Beskriv kortfattat de eventuella utmaningarna. Finns hinder eller möjliggörare för ett patientsäkert arbete inom temat?:"]
[]
[]
[]
[]
[null,"4.2","Analyser som möjliggör lärande"]
[]
[null,"A","Har ledningen och verksamheterna kunskap om vilka analyser som behöver göras för att få en bra förståelse för hur säkerheten ser ut och vilka förbättringar som behövs?",null,{"$f":"IF(D373>\"\",\"þ\",\"o\")","v":"o"}]
[]
[null,"B","Har ledningen och verksamheterna de stöd de behöver för att genomföra analyser? T.ex. stödfunktioner med analys- och statistikkompetens och verktyg för att själva analysera sina resultat. ",null,{"$f":"IF(D375>\"\",\"þ\",\"o\")","v":"o"}]
[]
[null,"C","Görs analyser som ger förståelse för hur patientsäkerheten ser ut, vad som är bakomliggande orsaker till eventuella brister, vad som behöver förstärkas eller förbättras och vilka åtgärder som kan vidtas?",null,"o"]
[]
[null,"D","Beskriv kortfattat de eventuella utmaningarna. Finns hinder eller möjliggörare för ett patientsäkert arbete inom temat?:"]
[]
[]
[]
[]
[null,"4.3","Lärande från analyser och det egna arbetet"]
[]
[null,"A","Har ledningen och verksamheterna kunskap om hur de kan organisera sig för att möjliggöra lärande?",null,{"$f":"IF(D386>\"\",\"þ\",\"o\")","v":"o"}]
[]
[null,"B","Har ledningen och verksamheterna de stöd och verktyg de behöver för att ta tillvara på lärdomar och för att återkoppla resultat från uppföljning och analyser till berörda?",null,{"$f":"IF(D388>\"\",\"þ\",\"o\")","v":"o"}]
[]
[null,"C","Sker ett kontinuerligt och ändamålsenligt lärande som bidrar till ökad patientsäkerhet?",null,"o"]
[]
[null,"D","Beskriv kortfattat de eventuella utmaningarna. Finns hinder eller möjliggörare för ett patientsäkert arbete inom temat?:"]
[]
[]
[]
[]
[null,"4.4","Spridning av kunskap och lärdomar"]
[]
[null,"A","Har ledningen och verksamheterna kunskap om vilka lärdomar som är viktiga att sprida för att bidra till en stärkt patientsäkerhet i hela regionen samt när det är relevant att även sprida kunskapen kommunalt/nationellt?",null,{"$f":"IF(D399>\"\",\"þ\",\"o\")","v":"o"}]
[]
[null,"B","Har ledningen och verksamheterna tillgång till verktyg och stöd för att sprida viktiga lärdomar inom regionen och vid behov även kommunalt/nationellt? ",null,{"$f":"IF(D401>\"\",\"þ\",\"o\")","v":"o"}]
[]
[null,"C","Sprids kunskap och lärdomar på ett ändamålsenligt sätt? ",null,"o"]
[]
[null,"D","Beskriv kortfattat de eventuella utmaningarna. Finns hinder eller möjliggörare för ett patientsäkert arbete inom temat?:"]
[]
[]
[]
[null,5,"Fokusområde 5: Öka riskmedvetenhet och beredskap"]
[]
[]
[null,"5.1","Beredskap och planering för hantering av risker på lång sikt"]
[]
[null,"A","Har ledningen och verksamheterna kunskap om strategiska förändringar och risker som på sikt kan påverka patientsäkerheten? Ex. kompetensförsörjning, digitalisering och omställning till nära vård.",null,{"$f":"IF(D414>\"\",\"þ\",\"o\")","v":"o"}]
[]
[null,"B","Har ledningen och verksamheterna stöd för att bevaka risker på lång sikt och för att arbeta med långsiktig riskhantering? ",null,{"$f":"IF(D416>\"\",\"þ\",\"o\")","v":"o"}]
[]
[null,"C","Genomförs en ändamålsenlig proaktiv planering och riskhantering i hela regionen, som bidrar till att upprätthålla patientsäkerheten även på sikt?",null,"o"]
[]
[null,"D","Beskriv kortfattat de eventuella utmaningarna. Finns hinder eller möjliggörare för ett patientsäkert arbete inom temat?:"]
[]
[]
[]
[]
[null,"5.2","Omvärldsbevakning ur ett patientsäkerhetsperspektiv"]
[]
[null,"A","Har ledningen och verksamheterna kunskap om vilken omvärldsbevakning som är viktig för patientsäkerhetsarbetet och ur ett patientsäkerhetsperspektiv, samt kunskap om information som är av vikt att inhämta från regionens medicinska ledning? Ex. om potentiella akuta eller långsiktiga risker, ny kunskap eller nya stöd.",null,{"$f":"IF(D427>\"\",\"þ\",\"o\")","v":"o"}]
[]
[null,"B","Har ledningen och verksamheterna de stöd de behöver för att säkerställa en god omvärldsbevakning? Ex. i form av instruktioner för omvärldsbevakning eller stödjande verktyg, forum och nätverk.",null,{"$f":"IF(D429>\"\",\"þ\",\"o\")","v":"o"}]
[]
[null,"C","Sker en ändamålsenlig och systematisk omvärldsbevakning utifrån relevanta patientsäkerhetsperspektiv i regionen och verksamheterna?",null,"o"]
[]
[null,"D","Beskriv kortfattat de eventuella utmaningarna. Finns hinder eller möjliggörare för ett patientsäkert arbete inom temat?:"]
[]
[]
[]
[]
[null,"5.3","Färdighetsträning och simulering för ökad beredskap"]
[]
[null,"A","Har ledningen och verksamheterna kunskap om i vilka sammanhang som simulering samt beredskaps- och färdighetsträning kan användas för att utveckla färdigheter och stärka beredskapen ur ett patientsäkerhetsperspektiv?",null,{"$f":"IF(D440>\"\",\"þ\",\"o\")","v":"o"}]
[]
[null,"B","Har ledningen och verksamheterna de stöd de behöver för att genomföra simulering samt beredskaps- och färdighetsträning som omfattar ett patientsäkerhetsperspektiv?",null,{"$f":"IF(D442>\"\",\"þ\",\"o\")","v":"o"}]
[]
[null,"C","Genomförs simulering samt beredskaps- och färdighetsträning som bidrar till stärkt kompetens inom verksamheterna och ökad beredskap i region?",null,"o"]
[]
[null,"D","Beskriv kortfattat de eventuella utmaningarna. Finns hinder eller möjliggörare för ett patientsäkert arbete inom temat?:"]

{"sheet":"Variabler","index":9,"n_rows":40,"n_cols":9,"rows_kept":40,"cut":false,"hidden":true,"merged":[[0,16,0,21],[1,16,1,21]]}
[]
[null,null,null,"Alternativ","Värde",null,null,null,"Region"]
[null,null,null,"Ja",2,null,null,null,"Välj region från listan (alternativt organisation)"]
[null,null,null,"Ja, i huvudsak ",1,null,null,null,"Region Blekinge"]
[null,null,null,"Till viss del",-1,null,null,null,"Region Dalarna"]
[null,null,null,"Nej",-2,null,null,null,"Region Gotland"]
[null,null,null,"Tillräcklig info saknas",0,null,null,null,"Region Gävleborg"]
[null,null,null,null,null,null,null,null,"Region Halland"]
[null,null,null,null,null,null,null,null,"Region Jämtland Härjedalen"]
[null,null,null,null,null,null,null,null,"Region Jönköpings län"]
[null,null,null,null,null,null,null,null,"Region Kalmar län"]
[null,null,null,"Alternativ","Värde",null,null,null,"Region Kronoberg"]
[null,null,null,"Prioritera",1,null,null,null,"Region Norrbotten"]
[null,null,null,"Avvakta",0,null,null,null,"Region Skåne"]
[null,null,null,"Arbete pågår",0,null,null,null,"Region Stockholm"]
[null,null,null,"Under kontroll",0,null,null,null,"Region Sörmland"]
[null,null,null,null,null,null,null,null,"Region Uppsala"]
[null,null,null,null,null,null,null,null,"Region Värmland"]
[null,null,null,null,null,null,null,null,"Region Västerbotten"]
[null,null,null,null,null,null,null,null,"Region Västernorrland"]
[null,null,null,null,null,null,null,null,"Region västmanland"]
[null,null,null,null,null,null,null,null,"Region Örebro län"]
[null,null,null,null,null,null,null,null,"Region Östergötland"]
[null,null,null,null,null,null,null,null,"Västra Götalandsregionen"]
[null,null,null,null,null,null,null,null,"Ideell eller privat utförare"]
[null,null,null,null,null,null,null,null,"Annan organisation"]
[]
[]
[]
[]
[]
[null,null,"Resursåtgång",null,"Effekt"]
[null,null,"Liten",3,"Liten",1]
[null,null,"Medel",2,"Medel",2]
[null,null,"Stor",1,"Stor",3]
[null,null,null,null,"Mycket stor",4]
[]
[]
[]
[null,null,"Lösen för att lås upp worksheet protection: ps2020SKR"]